Workbook

Sheet IS
A1: Income Statement
A2: Report in thousands local currency
B4: =GETENDDATE() -> 31.7.2017 г. | C4: Nov
B5: L'Curr | C5: L'Curr
A6: Net sales, ext | B6: 4868 | C6: 7795
A7: Net sales, ig | B7: =SUM(B8:B11) -> 2262 | C7: =SUM(C8:C11) -> 2619
A8: NLC3032 Mauer NL | B8: 2262 | C8: 2577
A9: CZO3022 AA Czech & Slovakia | C9: 3 | G9: 0.001
A10: RO3074 AA Romania | C10: 31
A11: SIO33121 AA Slovenia | C11: 8
A12: TOTINCOME - TOTAL SALES | B12: =SUM(B6:B7) -> 7130 | C12: =SUM(C6:C7) -> 10414
A14: Direct material | B14: -2446 | C14: -3303 | D14: =C14/$C$12 -> -0.3171691953
A15: Direct labor | B15: -649 | C15: -798 | D15: -0.07662761667
A16: Variable production costs | B16: -344 | C16: -655 | D16: -0.0628961014
A17: Freight costs | B17: -60 | C17: -45 | D17: -0.004321106203
A18: Freight income | B18: 43 | C18: 72 | D18: 0.006913769925
A19: Other direct distribution costs | C19: -2 | D19: -0.0001920491646
A20: COINCOME - CONTRIBUTION MARGIN | B20: =SUM(B12:B19) -> 3674 | C20: =SUM(C12:C19) -> 5683 | D20: 0.5457077012
A22: Fixed production costs | C22: -1603 | D22: =C22/$C$12 -> -0.1539274054
A23: GRINCOME - GROSS MARGIN | B23: =SUM(B20:B22) -> 3674 | C23: =SUM(C20:C22) -> 4080 | D23: =B23/$B$12 -> 0.5152875175
A25: RnD costs | C25: -299 | D25: =C25/$C$12 -> -0.02871135011
A26: Selling expenses | C26: -682 | D26: -0.06548876512
A27: Administrative expenses | C27: -945 | D27: -0.09074323027
A28: Exchange gain on operating items | C28: 29 | D28: 0.002784712886
A29: Exchange loss on operating items | C29: -37 | D29: -0.003552909545
A30: 23027Ext - Gain/loss on sale of fixed assets, ext | C30: 65 | D30: 0.006241597849
A31: 23027IG - Gain/loss on sale of fixed assets, IG | C31: 0 | D31: 0
D32: 0
D33: 0
D34: 0
A35: Other operating income | C35: 4 | D35: 0.0003840983292
A36: Other operating expenses | C36: -25 | D36: -0.002400614557
A38: EBIT | B38: =SUM(B23:B36)-B31 -> 3674 | C38: =SUM(C23:C36)-C31 -> 2190 | D38: =C38/$C$12 -> 0.2102938352
A39: Share in earnings in associated comp.
A40: EBIT (ext) | B40: =SUM(B38:B39) -> 3674 | C40: =SUM(C38:C39) -> 2190
A41: Dividends, ext
A42: Dividends, ig
A43: Dividends, associates
A44: L-t interest income and similar items, ext
A45: L-t interest income and similar items, ig
A46: S-t interest income and similar items, ext
A47: S-t interest income and similar items, ig
A48: Other financial income
A49: L-t interest expense and similar items, ext
A50: L-t interest expense and similar items, ig | C50: 0
A51: S-t interest expense and similar items, ext | C51: -2.87642
A52: S-t interest expense and similar items, ig | C52: 0
A53: Interest on post-employment obligation | C53: 0
A54: Interest on pension plan assets | C54: 0
A55: Recognition of actuarial gains/losses, net | C55: 0
A56: Other financial expenses | C56: -34
A57: Exchange rate gain, assets | C57: 0
A58: Exchange rate gain, liabilitites
A59: Exchange rate loss, assets
A60: Exchange rate loss, liabilitites
A61: TOTAL FINANCIAL ITEMS | B61: =SUM(B41:B60) -> 0 | C61: =SUM(C41:C60) -> -36.87642
A62: INCOME AFTER FINANCIAL ITEMS | B62: =B40+B61 -> 3674 | C62: =C40+C61 -> 2153.12358
A63: Restructuring items
A64: Impairment of Goodwill
A65: Extraordinary Items Group (d)
A66: Extraordinary Items Division (d)
A67: TOTAL EXTRAORDINARY ITEMS | B67: =SUM(B63:B66) -> 0 | C67: =SUM(C63:C66) -> 0
A68: Intra-group Service Fee
A69: INCOME BEFORE APPROPRIATIONS | B69: =B62+B67+B68 -> 3674 | C69: =C62+C67+C68 -> 2153.12358
A70: Group contribution
A71: EBT | B71: =B69+B70 -> 3674 | C71: =C69+C70 -> 2153.12358
A72: Tax expense for the year | B72: -230 | C72: -240
A73: Tax attributable to prior year | B73: 0 | C73: 0
A74: Deferred tax for the year | B74: 23.2463 | C74: 23
A75: Deferred tax attributable to prior year | B75: 0 | C75: 0
A76: Withholding taxes | B76: 0 | C76: 0
A77: Other taxes | B77: 0 | C77: 0
A78: TOTAL TAXES | B78: =SUM(B72:B77) -> -206.7537 | C78: =SUM(C72:C77) -> -217
A79: Net income from discontinued operations
A80: Non-controlling interest
A81: NET INCOME | B81: =B71+B78+B79+B80 -> 3467.2463 | C81: =C71+C78+C79+C80 -> 1936.12358

Sheet KPI (hidden)
A1: Other KPI
B4: Estimated 12 month rolling
A5: MTPT
A6: DPO
A7: DSO

Sheet PGR
A1: Product Group Reporting
A4: L'Curr | B4: 21000Ext - Net sales, ext | C4: 21000IG - Net sales, ig | D4: TOTINCOME - TOTAL SALES | E4: 23010 - Direct material | F4: 23012 - Direct labor | G4: 23011 - Variable production costs | H4: 23013 - Freight costs | I4: 23014 - Freight income | J4: 23015 - Other direct distribution costs | K4: COINCOME - CONTRIBUTION MARGIN
A5: 1. Cylinders | B5: =SUM(B6:B7) ->  | K5: =SUM(D5:J5) -> 
A6: 1.A Cylinders Mechanical | B6: =(K2D("7011","4110")+K2D("7011","4111")-K2D("7011-21","4110")-K2D("7011-21","4111")) + K2D("7020-010051","4110") + K2D("7020-010051","4111") + K2D("7020-010060","4110") + K2D("7020-010060","4111") + K2D("7020-13","4110") + K2D("7020-13","4111") + K2D("7020-14","4110") + K2D("7020-14","4111") + K2D("7020-15","4110") + K2D("7020-15","4111") + K2D("7020-21","4110") + K2D("7020-21","4111") + K2D("7020-290004","4110") + K2D("7020-290004","4111") ->  | C6: =( K2D("7011","4112") - K2D("7011-21","4112") )+ K2D("7020-010051","4112") + K2D("7020-010060","4112") + K2D("7020-13","4112") + K2D("7020-14","4112") + K2D("7020-15","4112") + K2D("7020-21","4112")+K2D("7020-290004","4112") ->  | D6: =SUM(B6:C6) ->  | E6: =-((K2D("6110-01","3030-01") -K2D("6110-01","3030-010021"))+ K2D("3040","7020-010051")+ K2D("3040","7020-010060")+ K2D("3040","7020-13")+ K2D("3040","7020-13")+ K2D("3040","7020-14")+ K2D("3040","7020-15")+ K2D("3040","7020-21") + K2D("3040","7020-290004")) ->  | F6: =-(K2D("6110-11","3030-01")-K2D("6110-11","3030-010021")) ->  | G6: =E6/E$72*(IS!B$16) ->  | H6: =E6/E$72*(IS!B$17) ->  | I6: =D6/D$72*IS!B$18 ->  | J6: =E6/E$72*IS!B$19 -> 
A7: 1.B Cylinders Electromechanical | D7: =SUM(B7:C7) -> 0 | K7: 0
A8: 2. Locksets | B8: =SUM(B9:B10) -> 0 | C8: 0 | D8: 0 | E8: 0 | F8: 0 | G8: 0 | H8: 0 | I8: 0 | J8: 0 | K8: 0
A9: 2.A Locksets Mechanical | D9: =SUM(B9:C9) -> 0 | K9: 0
A10: 2.B Locksets Electromechanical | D10: =SUM(B10:C10) -> 0 | K10: 0
A11: 3. Lock Cases | B11: =SUM(B12:B13) -> 
A12: 3.A Lock Cases Mechanical | B12: =K2D("7012","4110")+K2D("7012","4111")+K2D("7020-02","4110")+K2D("7020-02","4111")+K2D("7020-11","4110")+K2D("7020-11","4111")+K2D("7020-12","4110")+K2D("7020-12","4111")+K2D("7020-22","4110")+K2D("7020-22","4111") ->  | C12: =K2D("7012","4112")+K2D("7020-02","4112")+K2D("7020-11","4112")+K2D("7020-12","4112")+K2D("7020-22","4112") ->  | D12: =SUM(B12:C12) ->  | E12: =-(K2D("6110-02","3030-02")+K2D("3040","7020-02")+K2D("3040","7020-11")+K2D("3040","7020-12")+K2D("3040","7020-22")) ->  | F12: =-(K2D("6110-22","3030-02")) ->  | G12: =E12/E$72*(IS!B$16) ->  | H12: =E12/E$72*(IS!B$17) ->  | I12: =D12/D$72*IS!B$18 ->  | J12: =E12/E$72*IS!B$19 -> 
A13: 3.B Lock Cases Electromechanical | B13: =K2D("7016-03","4110")+K2D("7016-03","4111") ->  | C13: =K2D("7016-03","4112") ->  | D13: =SUM(B13:C13) ->  | E13: =-(K2D("6110-07","3030-070005")+K2D("6110-07","3030-070006")) ->  | F13: =-(K2D("6110-22","3030-070005")+K2D("6110-22","3030-070006")) ->  | G13: =E13/E$72*(IS!B$16) ->  | H13: =E13/E$72*(IS!B$17) ->  | I13: =D13/D$72*IS!B$18 ->  | J13: =E13/E$72*IS!B$19 -> 
A14: 4. Padlocks | B14: =SUM(B15:B16) -> 
A15: 4.A Padlocks - Mechanical | B15: =K2D("7018","4110")+K2D("7018","4111")+K2D("7020-06","4110")+K2D("7020-06","4111")+K2D("7020-24","4110")+K2D("7020-24","4111")+K2D("7020-290002","4110")+K2D("7020-290002","4111") ->  | C15: =K2D("7018","4112")+K2D("7020-06","4112")+K2D("7020-24","4112")+K2D("7020-290002","4112") ->  | D15: =SUM(B15:C15) ->  | E15: =-(K2D("6110-09","3030-06")+K2D("3040","7020-06")+K2D("3040","7020-24")+K2D("3040","7020-290002")) ->  | F15: =-(K2D("6110-22","3030-06")) ->  | G15: =E15/E$72*(IS!B$16) ->  | H15: =E15/E$72*(IS!B$17) ->  | I15: =D15/D$72*IS!B$18 ->  | J15: =E15/E$72*IS!B$19 -> 
A16: 4.B Padlocks - Electromechanical | D16: =SUM(B16:C16) -> 0 | K16: 0
A17: 5. Camlocks | B17: =SUM(B18:B19) -> 
A18: 5.A Camlocks/Industrial Locks - Mechanical (all kinds) | B18: =K2D("7011-21","4110")+K2D("7011-21","4111")+K2D("7020-01","4110")+K2D("7020-01","4111")-K2D("7020-010051","4110")-K2D("7020-010051","4111")-K2D("7020-010060","4110")-K2D("7020-010060","4111") ->  | C18: =K2D("7011-21","4112")+K2D("7020-01","4112")-K2D("7020-010051","4112")-K2D("7020-010060","4112") ->  | D18: =SUM(B18:C18) ->  | E18: =-(K2D("6110-01","3030-010021")+K2D("3040","7020-01")-K2D("3040","7020-010051")-K2D("3040","7020-010060")) ->  | F18: =-(K2D("6110-11","3030-010021")) ->  | G18: =E18/E$72*(IS!B$16) ->  | H18: =E18/E$72*(IS!B$17) ->  | I18: =D18/D$72*IS!B$18 ->  | J18: =E18/E$72*IS!B$19 -> 
A19: 5.B Camlocks/Industrial Locks - Electromechanical (all kinds) | B19: =K2D("7016-02","4110")+K2D("7016-02","4111") ->  | C19: =K2D("7016-02","4112") ->  | D19: =SUM(B19:C19) ->  | E19: =-(K2D("6110-07","3030-070002")+K2D("6110-07","3030-070003")+K2D("6110-07","3030-070004")+K2D("6110-07","3030-070007")+K2D("6110-07","3030-070008")+K2D("6110-07","3030-070012")+K2D("6110-07","3030-070014")) ->  | F19: =-(K2D("6110-22","3030-070002")+K2D("6110-22","3030-070003")+K2D("6110-22","3030-070004")+K2D("6110-22","3030-070007")+K2D("6110-22","3030-070008")+K2D("6110-22","3030-070012")+K2D("6110-22","3030-070014")) ->  | G19: =E19/E$72*(IS!B$16) ->  | H19: =E19/E$72*(IS!B$17) ->  | I19: =D19/D$72*IS!B$18 ->  | J19: =E19/E$72*IS!B$19 -> 
A20: 6. Door Closers | B20: =SUM(B21:B22) ->  | C20: =SUM(C21:C22) -> 0 | F20: 0
A21: 6.A Door Closers - Mechanical | B21: =K2D("7020-26","4110")+K2D("7020-26","4111") ->  | C21: =K2D("7020-26","4112") -> 0 | D21: =SUM(B21:C21) ->  | E21: =-(K2D("3040-26","7020-26")) ->  | G21: =E21/E$72*(IS!B$16) ->  | H21: =E21/E$72*(IS!B$17) ->  | I21: =D21/D$72*IS!B$18 ->  | J21: =E21/E$72*IS!B$19 -> 
A22: 6.B Door Closers - Electromechanical | D22: =SUM(B22:C22) -> 0 | K22: 0
A23: 7. Lock Trims | B23: =SUM(B24:B25) -> 0 | C23: 0 | D23: 0 | E23: 0 | F23: 0 | G23: 0 | H23: 0 | I23: 0 | J23: 0 | K23: 0
A24: 7.A Lock Trims - Mechanical | D24: =SUM(B24:C24) -> 0 | K24: 0
A25: 7.B Lock Trims - Electro Mechanical | D25: =SUM(B25:C25) -> 0 | K25: 0
A26: 8. Panic and Exit Devices | B26: =SUM(B27:B28) -> 0 | C26: 0 | D26: 0 | E26: 0 | F26: 0 | G26: 0 | H26: 0 | I26: 0 | J26: 0 | K26: 0
A27: 8.A Panic and Exit Devices - Mechanical | D27: =SUM(B27:C27) -> 0 | K27: 0
A28: 8.B Panic and Exit Devices - Electromechanical | D28: =SUM(B28:C28) -> 0 | K28: 0
A29: 9. Architectural and Accessory Hardware | B29: =SUM(B30:B31) ->  | C29: =SUM(C30:C31) -> 
A30: 9.A Architectural and Accessory Hardware - Mechanical | B30: =K2D("7013","4110")+K2D("7013","4111")+K2D("7020-03","4110")+K2D("7020-03","4111")+K2D("7020-07","4110")+K2D("7020-07","4111")+K2D("7020-10","4110")+K2D("7020-10","4111")+K2D("7020-23","4110")+K2D("7020-23","4111")+K2D("7020-25","4110")+K2D("7020-25","4111") ->  | C30: =K2D("7013","4112")+K2D("7020-03","4112")+K2D("7020-07","4112")+K2D("7020-10","4112")+K2D("7020-23","4112")+K2D("7020-25","4112") ->  | D30: =SUM(B30:C30) ->  | E30: =-(K2D("6110-03","3030-03") +K2D("3040","7020-03")+K2D("3040","7020-07")+K2D("3040","7020-10")+K2D("3040","7020-23")+K2D("3040","7020-25")) ->  | F30: =-(K2D("6110-33","3030-03")) ->  | G30: =E30/E$72*(IS!B$16) ->  | H30: =E30/E$72*(IS!B$17) ->  | I30: =D30/D$72*IS!B$18 ->  | J30: =E30/E$72*IS!B$19 -> 
A31: 9.B Architectural Hardware and Accessory Hardware - Electro Mechanical | B31: =K2D("7016-01","4110")+K2D("7016-01","4111") ->  | C31: =K2D("7016-01","4112") ->  | D31: =SUM(B31:C31) ->  | E31: =-(K2D("6110-07","3030-070001")+K2D("6110-07","3030-070009")+K2D("6110-07","3030-070011")+K2D("6110-07","3030-070013")+K2D("6110-07","3030-070015")) ->  | F31: =-(K2D("6110-22","3030-070001")+K2D("6110-22","3030-070009")+K2D("6110-22","3030-070011")+K2D("6110-22","3030-070013")+K2D("6110-22","3030-070015")) ->  | G31: =E31/E$72*(IS!B$16) ->  | H31: =E31/E$72*(IS!B$17) ->  | I31: =D31/D$72*IS!B$18 ->  | J31: =E31/E$72*IS!B$19 -> 
A32: 10. Strikes, Magnetic Locks and Bolts | B32: =SUM(B33) ->  | F32: 0
A33: 10.A Strikes, Magnetic Locks and Bolts (all elmech) | B33: =K2D("7020-27","4110")+K2D("7020-27","4111") ->  | C33: =K2D("7020-27","4112") ->  | D33: =SUM(B33:C33) ->  | E33: =-(K2D("3040-27","7020-27")) ->  | G33: =E33/E$72*(IS!B$16) ->  | H33: =E33/E$72*(IS!B$17) ->  | I33: =D33/D$72*IS!B$18 ->  | J33: =E33/E$72*IS!B$19 -> 
A34: 11. Identity and Access Solutions | B34: =SUM(B35) -> 0 | C34: 0 | D34: 0 | E34: 0 | F34: 0 | G34: 0 | H34: 0 | I34: 0 | J34: 0 | K34: 0
A35: 11.A Identity and Access Solutions (all elmech) | D35: =SUM(B35:C35) -> 0 | K35: 0
A36: 12. Security doors and fittings | B36: =SUM(B37:B38) -> 0 | C36: 0 | D36: 0 | E36: 0 | F36: 0 | G36: 0 | H36: 0 | I36: 0 | J36: 0 | K36: 0
A37: 12.A Security doors and fittings - Mechanical | D37: =SUM(B37:C37) -> 0 | K37: =SUM(D37:J37) -> 0
A38: 12.B Security doors and fittings - Electromechanical | D38: =SUM(B38:C38) -> 0 | K38: 0
A39: 13. Window Locks and Systems | B39: =SUM(B40:B41) -> 0 | C39: 0 | D39: 0 | E39: 0 | F39: 0 | G39: 0 | H39: 0 | I39: 0 | J39: 0 | K39: 0
A40: 13.A Window Locks and Systems - Mechanical | D40: =SUM(B40:C40) -> 0 | K40: 0
A41: 13.B Window Locks and Systems - Electro Mechanical | D41: =SUM(B41:C41) -> 0 | K41: 0
A42: 14. Hospitality products | B42: =SUM(B43) -> 0 | C42: 0 | D42: 0 | E42: 0 | F42: 0 | G42: 0 | H42: 0 | I42: 0 | J42: 0 | K42: 0
A43: 14.A Hospitality products (all elmech) | D43: =SUM(B43:C43) -> 0 | K43: 0
A44: 15. Glass Hardware (all mech) | D44: =SUM(B44:C44) -> 0 | K44: 0
A45: 16. Residential Access Control | B45: =SUM(B46) -> 0 | C45: 0 | D45: 0 | E45: 0 | F45: 0 | G45: 0 | H45: 0 | I45: 0 | J45: 0 | K45: 0
A46: 16.A Residential Access Control - Electro Mechanical | D46: =SUM(B46:C46) -> 0 | K46: 0
A47: 17. Residential Electronic security | B47: =SUM(B48) -> 0 | C47: 0 | D47: 0 | E47: 0 | F47: 0 | G47: 0 | H47: 0 | I47: 0 | J47: 0 | K47: 0
A48: 17.A Residential Electronic security (all elmech) | D48: =SUM(B48:C48) -> 0 | K48: 0
A49: 18. Industrial Locks | B49: =SUM(B50:B51) -> 0 | C49: 0 | D49: 0 | E49: 0 | F49: 0 | G49: 0 | H49: 0 | I49: 0 | J49: 0 | K49: 0
A50: 18.A Industrial Locks - mechanical | D50: =SUM(B50:C50) -> 0 | K50: 0
A51: 18.B Industrial Locks - electro mechanical | D51: =SUM(B51:C51) -> 0 | K51: 0
A52: 19. Electronic Accessories | B52: =SUM(B53) -> 0 | C52: 0 | D52: 0 | E52: 0 | F52: 0 | G52: 0 | H52: 0 | I52: 0 | J52: 0 | K52: 0
A53: 19.A Electronic Accessories (all elmech) | D53: =SUM(B53:C53) -> 0 | K53: 0
A54: 20. Fence Systems - mechanical
A55: 21. Pedestrian Doors Entrance Systems
A56: 22. Industrial Products Entrance Systems
A57: 23. Residential Products Entrance Systems
A58: 24. Components and Hardware Entrance Systems
A59: 25. Automation Entrance Systems
A60: 26. Service | B60: =SUM(B61:B68) ->  | E60: 0 | F60: 0 | G60: 0 | H60: 0 | J60: 0 | K60: =SUM(D60:J60) -> 
A61: 26.1 Contracts | D61: =SUM(B61:C61) -> 0 | K61: 0
A62: 26.2 Labor Sales | B62: =K2D("7030","4110")+K2D("7030","4111")-K2D("7030-01","4110")-K2D("7030-01","4111")-K2D("7030-99","4110")-K2D("7030-99","4111") ->  | C62: =K2D("7030","4112")-K2D("7030-01","4112")-K2D("7030-99","4112") ->  | I62: =D62/D$72*IS!B$18 -> 
A63: 26.3 Spares | D63: 0 | K63: 0
A64: 26.4 Upgrades and Modernization Kits | D64: 0 | K64: 0
A65: 26.5 Breakdowns Contract Doors | D65: 0 | K65: 0
A66: 26.6 Breakdowns Non Contract Doors | D66: 0 | K66: 0
A67: 26.7 e-maintenance Contracts | D67: 0 | K67: 0
A68: 26.8 Other Service | D68: 0 | K68: 0
A69: 27. Other | B69: =SUM(B70:B71) -> 
A70: 27.A Other - Other products mechanical | B70: =K2D("7014","4110")+K2D("7014","4111")+K2D("7015-01","4110")+K2D("7015-01","4111")+K2D("7015-02","4110")+K2D("7015-02","4111")+K2D("7015-04","4110")+K2D("7015-04","4111")+K2D("7015-05","4110")+K2D("7015-05","4111")+K2D("7015-09","4110")+K2D("7015-09","4111")+K2D("7020-290001","4110")+K2D("7020-290001","4111")+K2D("7020-290003","4110")+K2D("7020-290003","4111")+K2D("7020-290005","4110")+K2D("7020-290005","4111")+K2D("7020-290006","4110")+K2D("7020-290006","4111") ->  | C70: =K2D("7014","4112")+K2D("7015-01","4112")+K2D("7015-02","4112")+K2D("7015-04","4112")+K2D("7015-05","4112")+K2D("7015-09","4112")+K2D("7020-290001","4112")+K2D("7020-290003","4112")+K2D("7020-290005","4112")+K2D("7020-290006","4112") ->  | D70: =SUM(B70:C70) ->  | E70: =-(K2D("6110-04","3030-04")+K2D("3020","7015-01")+K2D("3020","7015-02")+K2D("3040","7020-04")+K2D("3040","7020-05")+K2D("3040","7020-09")+K2D("3040","7020-290001")+K2D("3040","7020-290003")+K2D("3040","7020-290005")+K2D("3040","7020-290006")) ->  | F70: =-(K2D("6110-44","3030-04")) ->  | G70: =E70/E$72*(IS!B$16) ->  | H70: =E70/E$72*(IS!B$17) ->  | I70: =D70/D$72*IS!B$18 ->  | J70: =E70/E$72*IS!B$19 -> 
A71: 27.B Other - Other products electro mechanical | B71: =K2D("7015-03","4110")+K2D("7015-03","4111") ->  | C71: =K2D("7015-03","4112") ->  | D71: =SUM(B71:C71) ->  | E71: =-(K2D("3020","7015-03")) ->  | F71: -7 | G71: =E71/E$72*(IS!B$16) ->  | H71: =E71/E$72*(IS!B$17) ->  | I71: =D71/D$72*IS!B$18 ->  | J71: =E71/E$72*IS!B$19 -> 
A72: Total Products | B72: =B69+B60+B52+B49+B47+B45+B42+B39+B36+B34+B32+B29+B26+B23+B20+B17+B14+B11+B8+B5 ->  | C72: =C69+C60+C52+C49+C47+C45+C42+C39+C36+C34+C32+C29+C26+C23+C20+C17+C14+C11+C8+C5 ->  | D72: =SUM(B72:C72) ->  | E72: =E69+E60+E52+E49+E47+E45+E42+E39+E36+E34+E32+E29+E26+E23+E20+E17+E14+E11+E8+E5 -> 
B73: =B72-IS!B6 ->  | C73: =C72-IS!B7 ->  | E73: =E72-IS!B14 ->  | F73: =F72-IS!B15 ->  | G73: =G72-IS!B16 ->  | H73: =H72-IS!B17 ->  | I73: =I72-IS!B18 ->  | J73: =J72-IS!B19 ->  | K73: =K72-IS!B20 -> 

Sheet Указания
A1: PGR - Product Group Reporting - Справка Продуктова група
A3: Справката отразява приходи от продажби на продукция, стоки и услуги и разходите за производството или закупуването им в хиляди лева.
A4: Продуктите се разделят на няколко групи с подгрупи механични и електромеханични (с малки изключения).
A5: Стойностите за приходи се дават като положителни числа, стойностите за разходи - като отрицателни числа.
A6: Сборовете по колоните съответстват на данните от ОПР за Асса Аблой - Income Statement /sheet IS/ по съответните HFM-кодове.
A7: Контролните числа на ред 73 трябва да се получат 0, т.е. Не трябва да има разлика между клетките на ред 73 и съответните в IS.
A9: В колони B, C, D са стойностите на приходите от продажби по групи продукти: | E9: В колона Е са стойността на преките материални разходи за производство на | I9: В колона F е стойността на прекия труд за производство на продукция.
B10: кол. B - продажби на клиенти извън Асса Аблой - external - HFM код 21000EXT | E10: продукция и стойността на продадените стоки.
B11: кол. C - продажби на клиенти - членове на Асса Аблой - intragroup - HFM код 21000IG
B12: ! Всички контрагенти от АА са събрани в сметка 4112, като след 12.2016г. и Ван Ерп ще бъде прехвърлен - сега само той е в с-ка 4111 - ан. партида 000004;
B13: кол. D - нетни продажби общо = кол.В + кол.С
B15: 21000Ext - Net sales, ext | C15: 21000IG - Net sales, ig | D15: TOTINCOME - TOTAL SALES | E15: 23010 - Direct material | I15: 23012 - Direct labor
A16: 1. Cylinders - ключалки | E16: 1. Cylinders - ключалки | I16: 1. Cylinders - ключалки
A17: 1.A Cylinders Mechanical | E17: 1.A Cylinders Mechanical | I17: 1.A Cylinders Mechanical
A18: B6 | B18: кредитен оборот на сметки | C18: 7011 без 7011-21 | D18: срещу цялата сметка 411 без 4112 и 4111-000004 /Ван Ерп/ | E18: E6 | F18: кредитния оборот на 6110-01 срещу 3030-01 без този срещу 3030-010021 | I18: F6 | J18: кредитен оборот 6110-11 срещу 3030-01
C19: 7020-010051 | F19: кредитния оборот на 3040 срещу: | G19: 7020-010051 | J19: без кредитен оборот 6110-11 срещу 3030-010021
C20: 7020-010060 | G20: 7020-010060
C21: 7020-13 | G21: 7020-13
C22: 7020-14 | G22: 7020-14
C23: 7020-15 | G23: 7020-15
C24: 7020-21 | G24: 7020-21
A26: C6 | B26: кредитен оборот на сметки | C26: 7011 без 7011-21 | D26: срещу сметка 4112 и 4111-000004
C27: 7020-010051
C28: 7020-010060
C29: 7020-13
C30: 7020-14
C31: 7020-15
C32: 7020-21
A34: D6 | B34: = B6 + C6
A36: 1.B Cylinders Electromechanical - към момента нямаме продажби и производство на такива продукти
A38: Клетките от ред 5 са сборове на клетките от редове 6 и 7 по колони. | E38: Клетките от ред 5 са сборове на клетките от редове 6 и 7 по колони. | I38: Клетките от ред 5 са сборове на клетките от редове 6 и 7 по колони.
A41: 3. Lock Cases | E41: 3. Lock Cases | I41: 3. Lock Cases
A42: 3.A Lock Cases Mechanical | E42: 3.A Lock Cases Mechanical | I42: 3.A Lock Cases Mechanical
A43: B12 | B43: кредитен оборот на сметки | C43: 7012 | D43: срещу цялата сметка 411 без 4112 и 4111-000004 /Ван Ерп/ | E43: E12 | F43: кредитния оборот на 6110-02 срещу 3030-02 | I43: F12 | J43: кредитен оборот 6110-22 срещу 3030-02
C44: 7020-02 | F44: кредитния оборот на 3040 срещу: | G44: 7020-02
C45: 7020-11 | G45: 7020-11
C46: 7020-12 | G46: 7020-12
C47: 7020-22 | G47: 7020-22
A49: C12 | B49: кредитен оборот на сметки | C49: 7012 | D49: срещу сметка 4112 и 4111-000004
C50: 7020-02
C51: 7020-11
C52: 7020-12
C53: 7020-22
A55: D12 | B55: = B12 + C12
A57: 3.B Lock Cases Electromechanical | E57: 3.B Lock Cases Electromechanical | I57: 3.B Lock Cases Electromechanical
A58: B13 | B58: кредитен оборот на сметки | C58: 7016-03 | D58: срещу цялата сметка 411 без 4112 и 4111-000004 /Ван Ерп/ | E58: E13 | F58: кредитния оборот на 6110-07 срещу: | G58: 3030-070005 | I58: F13 | J58: кредитен оборот 6110-22 срещу: | K58: 3030-070005
G59: 3030-070006 | K59: 3030-070006
A60: C13 | B60: кредитен оборот на сметки | C60: 7016-03 | D60: срещу сметка 4112 и 4111-000004
A62: D13 | B62: = B13 + C13
A64: Клетките от ред 11 са сборове на клетките от редове 12 и 13 по колони. | E64: Клетките от ред 11 са сборове на клетките от редове 12 и 13 по колони. | I64: Клетките от ред 11 са сборове на клетките от редове 12 и 13 по колони.
A67: 4. Padlocks | E67: 4. Padlocks | I67: 4. Padlocks
A68: 4.A Padlocks - Mechanical | E68: 4.A Padlocks - Mechanical | I68: 4.A Padlocks - Mechanical
A69: B15 | B69: кредитен оборот на сметки | C69: 7018 | D69: срещу цялата сметка 411 без 4112 и 4111-000004 /Ван Ерп/ | E69: E15 | F69: кредитния оборот на 6110-09 срещу 3030-06 | I69: F15 | J69: кредитен оборот 6110-22 срещу 3030-06
C70: 7020-06 | F70: кредитния оборот на 3040 срещу: | G70: 7020-06
C71: 7020-24 | G71: 7020-24
A73: C15 | B73: кредитен оборот на сметки | C73: 7018 | D73: срещу сметка 4112 и 4111-000004
C74: 7020-06
C75: 7020-24
A77: D15 | B77: = B15 + C15
A79: 4.B Padlocks - Electromechanical - към момента нямаме продажби и производство на такива продукти | E79: 4.B Padlocks - Electromechanical - към момента нямаме продажби и производство на такива продукти
A81: Клетките от ред 14 са сборове на клетките от редове 15 и 16 по колони. | E81: Клетките от ред 14 са сборове на клетките от редове 15 и 16 по колони. | I81: Клетките от ред 14 са сборове на клетките от редове 15 и 16 по колони.
A84: 5. Camlocks | E84: 5. Camlocks | I84: 5. Camlocks
A85: 5.A Camlocks/Industrial Locks - Mechanical (all kinds) | E85: 5.A Camlocks/Industrial Locks - Mechanical (all kinds) | I85: 5.A Camlocks/Industrial Locks - Mechanical (all kinds)
A86: B18 | B86: кредитен оборот на сметки | C86: 7011-21 | D86: срещу цялата сметка 411 без 4112 и 4111-000004 /Ван Ерп/ | E86: E18 | F86: кредитния оборот на 6110-01 срещу 3030-010021 | I86: F18 | J86: кредитния оборот на 6110-11 срещу 3030-010021
C87: 7020-01 без 7020-010051 | F87: кредитния оборот на 3040 срещу 7020-01: | H87: без 7020-010051
C88: и без 7020-010060 | H88: без 7020-010060
A90: C18 | B90: кредитен оборот на сметки | C90: 7011-21 | D90: срещу сметка 4112 и 4111-000004
C91: 7020-01 без 7020-010051
C92: и без 7020-010060
A94: D18 | B94: = B18 + C18
A96: 5.B Camlocks/Industrial Locks - Electromechanical (all kinds) | E96: 5.B Camlocks/Industrial Locks - Electromechanical (all kinds) | I96: 5.B Camlocks/Industrial Locks - Electromechanical (all kinds)
A97: B19 | B97: кредитен оборот на сметки | C97: 7016-02 | D97: срещу цялата сметка 411 без 4112 и 4111-000004 /Ван Ерп/ | E97: E19 | F97: кредитния оборот на 6110-07 срещу: | G97: 3030-070002 | I97: F19 | J97: кредитния оборот на 6110-22 срещу: | K97: 3030-070002
G98: 3030-070003 | K98: 3030-070003
A99: C19 | B99: кредитен оборот на сметки | C99: 7016-02 | D99: срещу сметка 4112 и 4111-000004 | G99: 3030-070004 | K99: 3030-070004
G100: 3030-070007 | K100: 3030-070007
A101: D19 | B101: = B19 + C19 | G101: 3030-070008 | K101: 3030-070008
G102: 3030-070012 | K102: 3030-070012
G103: 3030-070014 | K103: 3030-070014
A105: Клетките от ред 17 са сборове на клетките от редове 18 и 19 по колони. | E105: Клетките от ред 17 са сборове на клетките от редове 18 и 19 по колони. | I105: Клетките от ред 17 са сборове на клетките от редове 18 и 19 по колони.
A108: 6. Door Closers | E108: 6. Door Closers
A109: 6.A Door Closers - Mechanical | E109: 6.A Door Closers - Mechanical
A110: B21 | B110: кредитен оборот на сметки | C110: 7020-26 | D110: срещу цялата сметка 411 без 4112 и 4111-000004 /Ван Ерп/ | E110: E21 | F110: кредитния оборот на 3040-26 срещу 7020-26
A112: C21 | B112: кредитен оборот на сметки | C112: 7020-26 | D112: срещу сметка 4112 и 4111-000004
A114: D21 | B114: = B21 + C21
A116: 6.B Door Closers - Electromechanical - към момента нямаме продажби и производство на такива продукти | E116: 6.B Door Closers - Electromechanical - към момента нямаме продажби и производство на такива продукти
A118: Клетките от ред 20 са сборове на клетките от редове 21 и 22 по колони. | E118: Клетките от ред 20 са сборове на клетките от редове 21 и 22 по колони. | I118: Клетките от ред 20 са сборове на клетките от редове 21 и 22 по колони.
A121: 9. Architectural and Accessory Hardware | E121: 9. Architectural and Accessory Hardware | I121: 9. Architectural and Accessory Hardware
A122: 9.A Architectural and Accessory Hardware - Mechanical | E122: 9.A Architectural and Accessory Hardware - Mechanical | I122: 9.A Architectural and Accessory Hardware - Mechanical
A123: B30 | B123: кредитен оборот на сметки | C123: 7013 | D123: срещу цялата сметка 411 без 4112 и 4111-000004 /Ван Ерп/ | E123: E30 | F123: кредитния оборот на 6110-03 срещу 3030-03 | I123: F30 | J123: кредитния оборот на 6110-33 срещу 3030-03
C124: 7020-03 | F124: кредитния оборот на 3040 срещу: | G124: 7020-03
C125: 7020-07 | G125: 7020-07
C126: 7020-10 | G126: 7020-10
C127: 7020-23 | G127: 7020-23
C128: 7020-25 | G128: 7020-25
A130: C30 | B130: кредитен оборот на сметки | C130: 7013 | D130: срещу сметка 4112 и 4111-000004
C131: 7020-03
C132: 7020-07
C133: 7020-10
C134: 7020-23
C135: 7020-25
A137: D30 | B137: = B30 + C30
A139: 9.B Architectural Hardware and Accessory Hardware - Electro Mechanical | E139: 9.B Architectural Hardware and Accessory Hardware - Electro Mechanical | I139: 9.B Architectural Hardware and Accessory Hardware - Electro Mechanical
A140: B31 | B140: кредитен оборот на сметки | C140: 7016-01 | D140: срещу цялата сметка 411 без 4112 и 4111-000004 /Ван Ерп/ | E140: E31 | F140: кредитния оборот на 6110-07 срещу: | G140: 3030-070001 | I140: F31 | J140: кредитния оборот на 6110-22 срещу: | K140: 3030-070001
G141: 3030-070009 | K141: 3030-070009
A142: C31 | B142: кредитен оборот на сметки | C142: 7016-01 | D142: срещу сметка 4112 и 4111-000004 | G142: 3030-070011 | K142: 3030-070011
G143: 3030-070013 | K143: 3030-070013
A144: D31 | B144: = B31 + C31 | G144: 3030-070015 | K144: 3030-070015
A146: Клетките от ред 29 са сборове на клетките от редове 30 и 31 по колони. | E146: Клетките от ред 29 са сборове на клетките от редове 30 и 31 по колони. | I146: Клетките от ред 29 са сборове на клетките от редове 30 и 31 по колони.
A149: 10. Strikes, Magnetic Locks and Bolts | E149: 10. Strikes, Magnetic Locks and Bolts
A150: B33 | B150: кредитен оборот на сметки | C150: 7020-27 | D150: срещу цялата сметка 411 без 4112 и 4111-000004 /Ван Ерп/ | E150: E33 | F150: кредитния оборот на 3040-27 срещу 7020-27
A152: C33 | B152: кредитен оборот на сметки | C152: 7020-27 | D152: срещу сметка 4112 и 4111-000004
A154: D33 | B154: = B33 + C33
A156: Клетките от ред 32 са сборове на клетките от ред 33 по колони. | E156: Клетките от ред 32 са сборове на клетките от ред 33 по колони. | I156: Клетките от ред 32 са сборове на клетките от ред 33 по колони.
A159: 26. Service | E159: 26. Service
A160: 26.2 Labor Sales | E160: 26.2 Labor Sales
A161: B62 | B161: кредитен оборот на сметки 7030 без 7030-01 и 7030-99 | D161: срещу цялата сметка 411 без 4112 и 4111-000004 /Ван Ерп/
A163: C62 | B163: кредитен оборот на сметки 7030 без 7030-01 и 7030-99 | D163: срещу сметка 4112 и 4111-000004
A165: D62 | B165: = B62 + C62
A167: Клетките от ред 60 са сборове на клетките от редове 61 до 68 по колони. | E167: Клетките от ред 60 са сборове на клетките от редове 61 до 68 по колони. | I167: Клетките от ред 60 са сборове на клетките от редове 61 до 68 по колони.
A170: 27. Other | E170: 27. Other | I170: 27. Other
A171: 27.A Other - Other products mechanical | E171: 27.A Other - Other products mechanical | I171: 27.A Other - Other products mechanical
A172: B70 | B172: кредитен оборот на сметки | C172: 7014 | D172: срещу цялата сметка 411 без 4112 и 4111-000004 /Ван Ерп/ | E172: E70 | F172: кредитния оборот на 6110-04 срещу 3030-04 | I172: F70 | J172: кредитния оборот на 6110-44 срещу 3030-04
C173: 7015-01 | F173: кредитния оборот на 3020 срещу 7015-01
C174: 7015-02 | F174: кредитния оборот на 3020 срещу 7015-02
C175: 7020-04 | F175: кредитния оборот на 3040 срещу: | G175: 7020-04
C176: 7020-05 | G176: 7020-05
C177: 7020-09 | G177: 7020-09
A179: C70 | B179: кредитен оборот на сметки | C179: 7014 | D179: срещу сметка 4112 и 4111-000004
C180: 7015-01
C181: 7015-02
C182: 7020-04
C183: 7020-05
C184: 7020-09
A186: D70 | B186: = B70 + C70
A188: 27.B Other - Other products electro mechanical | E188: 27.B Other - Other products electro mechanical
A189: B71 | B189: кредитен оборот на сметки | C189: 7015-03 | D189: срещу цялата сметка 411 без 4112 и 4111-000004 /Ван Ерп/ | E189: E71 | F189: кредитния оборот на 3020 срещу 7015-03
A191: C71 | B191: кредитен оборот на сметки | C191: 7015-03 | D191: срещу сметка 4112 и 4111-000004
A193: D71 | B193: = B71 + C71
A195: Клетките от ред 69 са сборове на клетките от редове 70 и 71 по колони. | E195: Клетките от ред 69 са сборове на клетките от редове 70 и 71 по колони. | I195: Клетките от ред 69 са сборове на клетките от редове 70 и 71 по колони.
A197: ! Ако е възможно от ЕРП да се изкара информация за сейфове с електронно заключване тези данни трябва да се махнат от 27.A Other - Other products mechanical и да се запишат към 27.B Other - Other products electro mechanical
A200: Оборотът по сметка 6090-060004 намаля приходите от продажби по следния начин:
B201: кореспондиращ с Хенри Скуаер да се намали от B15
B202: кореспондиращ с Йозеф Фишер да се намали от B19
B203: кореспондиращ с Доверие Брико да се намали от: | D203: B6 (ключалки) - 50%
D204: B12 (брави) - 20%
D205: B30 (дръжки) - 30%
A207: B72 | B207: = B5 + B8 + B11 + B14 + B17 + B20 + B23 + B26 + B29 + B32 + B36 + B39 + B42 + B44 + B45 + B47 + B49 + B52 + B54 +B55 + B56 + B57 + B58 + B59 + B60 + B69 | E207: E72 | F207: = E5 + E8 + E11 + E14 + E17 + E20 + E23 + E26 + E29 + E32 + E36 + E39 + E42 + E44 + E45 + E47 + E49 + E52 + E54 + E55 + E56 + E57 + E58 + E59 + E60 + E69 | I207: F72 | J207: = F5 + F8 + F11 + F14 + F17 + F20 + F23 + F26 + F29 + F32 + F36 + F39 + F42 + F44 + F45 + F47 + F49 + F52 + F54 + F55 + F56 + F57 + F58 + F59 + F60 + F69
E209: Разликата между Е72 и стойността на 23010 в IS да се разпредели | I209: Разликата между F72 и стойността на 23012 в IS да се разпредели
E210: пропорционално върху получените стойности от горните изчисления. | I210: пропорционално върху получените стойности от горните изчисления.
A214: 23011 - Variable production costs | C214: Стойностите на тези три показателя се вземат от IS и се разпределят пропорционално на 23010 - Direct material. Сборните редове са аналогични на предходните колони. | E214: Пример: | F214: G6=E6/E72*655, където 655 е стойността на 23011 - Variable production costs от IS
A215: 23013 - Freight costs | F215: H6=E6/E72*45, където 45 е стойността на 23013 - Freight costs от IS
A216: 23015 - Other direct distribution costs | F216: J6=E6/E72*2, където 2 е стойността на 23015 - Other direct distribution costs
A218: 23014 - Freight income | C218: Стойността на показателя се взема от IS и се разпределя пропорционално на приходите от продажби. | G218: I6=D6/D72*72, където 72 е стойността на 23014 - Freight income от IS
A220: COINCOME - CONTRIBUTION MARGIN | C220: Колоната е сбор от колони D, E, F, G, H, I, J по съответните редове.

Sheet PGR Eur (hidden)
A1: Product Group Reporting
A4: EUR | B4: 21000Ext - Net sales, ext | C4: 21000IG - Net sales, ig | D4: TOTINCOME - TOTAL SALES | E4: 23010 - Direct material | F4: 23012 - Direct labor | G4: 23011 - Variable production costs | H4: 23013 - Freight costs | I4: 23014 - Freight income | J4: 23015 - Other direct distribution costs | K4: COINCOME - CONTRIBUTION MARGIN
A5: 1. Cylinders | B5: =SUM(B6:B7) ->  | K5: =SUM(D5:J5) -> 
A6: 1.A Cylinders Mechanical | B6: =PGR!B6*IS!#REF! ->  | C6: =PGR!C6*IS!#REF! ->  | D6: =SUM(B6:C6) ->  | E6: =PGR!E6*IS!#REF! ->  | F6: =PGR!F6*IS!#REF! ->  | G6: =PGR!G6*IS!#REF! ->  | H6: =PGR!H6*IS!#REF! ->  | I6: =PGR!I6*IS!#REF! ->  | J6: =PGR!J6*IS!#REF! -> 
A7: 1.B Cylinders Electromechanical | B7: =PGR!B7*IS!#REF! ->  | C7: =PGR!C7*IS!#REF! ->  | D7: =SUM(B7:C7) ->  | E7: =PGR!E7*IS!#REF! ->  | F7: =PGR!F7*IS!#REF! ->  | G7: =PGR!G7*IS!#REF! ->  | H7: =PGR!H7*IS!#REF! ->  | I7: =PGR!I7*IS!#REF! ->  | J7: =PGR!J7*IS!#REF! -> 
A8: 2. Locksets | B8: =SUM(B9:B10) -> 
A9: 2.A Locksets Mechanical | B9: =PGR!B9*IS!#REF! ->  | C9: =PGR!C9*IS!#REF! ->  | D9: =SUM(B9:C9) ->  | E9: =PGR!E9*IS!#REF! ->  | F9: =PGR!F9*IS!#REF! ->  | G9: =PGR!G9*IS!#REF! ->  | H9: =PGR!H9*IS!#REF! ->  | I9: =PGR!I9*IS!#REF! ->  | J9: =PGR!J9*IS!#REF! -> 
A10: 2.B Locksets Electromechanical | B10: =PGR!B10*IS!#REF! ->  | C10: =PGR!C10*IS!#REF! ->  | D10: =SUM(B10:C10) ->  | E10: =PGR!E10*IS!#REF! ->  | F10: =PGR!F10*IS!#REF! ->  | G10: =PGR!G10*IS!#REF! ->  | H10: =PGR!H10*IS!#REF! ->  | I10: =PGR!I10*IS!#REF! ->  | J10: =PGR!J10*IS!#REF! -> 
A11: 3. Lock Cases | B11: =SUM(B12:B13) -> 
A12: 3.A Lock Cases Mechanical | B12: =PGR!B12*IS!#REF! ->  | C12: =PGR!C12*IS!#REF! ->  | D12: =SUM(B12:C12) ->  | E12: =PGR!E12*IS!#REF! ->  | F12: =PGR!F12*IS!#REF! ->  | G12: =PGR!G12*IS!#REF! ->  | H12: =PGR!H12*IS!#REF! ->  | I12: =PGR!I12*IS!#REF! ->  | J12: =PGR!J12*IS!#REF! -> 
A13: 3.B Lock Cases Electromechanical | B13: =PGR!B13*IS!#REF! ->  | C13: =PGR!C13*IS!#REF! ->  | D13: =SUM(B13:C13) ->  | E13: =PGR!E13*IS!#REF! ->  | F13: =PGR!F13*IS!#REF! ->  | G13: =PGR!G13*IS!#REF! ->  | H13: =PGR!H13*IS!#REF! ->  | I13: =PGR!I13*IS!#REF! ->  | J13: =PGR!J13*IS!#REF! -> 
A14: 4. Padlocks | B14: =SUM(B15:B16) -> 
A15: 4.A Padlocks - Mechanical | B15: =PGR!B15*IS!#REF! ->  | C15: =PGR!C15*IS!#REF! ->  | D15: =SUM(B15:C15) ->  | E15: =PGR!E15*IS!#REF! ->  | F15: =PGR!F15*IS!#REF! ->  | G15: =PGR!G15*IS!#REF! ->  | H15: =PGR!H15*IS!#REF! ->  | I15: =PGR!I15*IS!#REF! ->  | J15: =PGR!J15*IS!#REF! -> 
A16: 4.B Padlocks - Electromechanical | B16: =PGR!B16*IS!#REF! ->  | C16: =PGR!C16*IS!#REF! ->  | D16: =SUM(B16:C16) ->  | E16: =PGR!E16*IS!#REF! ->  | F16: =PGR!F16*IS!#REF! ->  | G16: =PGR!G16*IS!#REF! ->  | H16: =PGR!H16*IS!#REF! ->  | I16: =PGR!I16*IS!#REF! ->  | J16: =PGR!J16*IS!#REF! -> 
A17: 5. Camlocks | B17: =SUM(B18:B19) -> 
A18: 5.A Camlocks/Industrial Locks - Mechanical (all kinds) | B18: =PGR!B18*IS!#REF! ->  | C18: =PGR!C18*IS!#REF! ->  | D18: =SUM(B18:C18) ->  | E18: =PGR!E18*IS!#REF! ->  | F18: =PGR!F18*IS!#REF! ->  | G18: =PGR!G18*IS!#REF! ->  | H18: =PGR!H18*IS!#REF! ->  | I18: =PGR!I18*IS!#REF! ->  | J18: =PGR!J18*IS!#REF! -> 
A19: 5.B Camlocks/Industrial Locks - Electromechanical (all kinds) | B19: =PGR!B19*IS!#REF! ->  | C19: =PGR!C19*IS!#REF! ->  | D19: =SUM(B19:C19) ->  | E19: =PGR!E19*IS!#REF! ->  | F19: =PGR!F19*IS!#REF! ->  | G19: =PGR!G19*IS!#REF! ->  | H19: =PGR!H19*IS!#REF! ->  | I19: =PGR!I19*IS!#REF! ->  | J19: =PGR!J19*IS!#REF! -> 
A20: 6. Door Closers | B20: =SUM(B21:B22) -> 
A21: 6.A Door Closers - Mechanical | B21: =PGR!B21*IS!#REF! ->  | C21: =PGR!C21*IS!#REF! ->  | D21: =SUM(B21:C21) ->  | E21: =PGR!E21*IS!#REF! ->  | F21: =PGR!F21*IS!#REF! ->  | G21: =PGR!G21*IS!#REF! ->  | H21: =PGR!H21*IS!#REF! ->  | I21: =PGR!I21*IS!#REF! ->  | J21: =PGR!J21*IS!#REF! -> 
A22: 6.B Door Closers - Electromechanical | B22: =PGR!B22*IS!#REF! ->  | C22: =PGR!C22*IS!#REF! ->  | D22: =SUM(B22:C22) ->  | E22: =PGR!E22*IS!#REF! ->  | F22: =PGR!F22*IS!#REF! ->  | G22: =PGR!G22*IS!#REF! ->  | H22: =PGR!H22*IS!#REF! ->  | I22: =PGR!I22*IS!#REF! ->  | J22: =PGR!J22*IS!#REF! -> 
A23: 7. Lock Trims | B23: =SUM(B24:B25) -> 
A24: 7.A Lock Trims - Mechanical | B24: =PGR!B24*IS!#REF! ->  | C24: =PGR!C24*IS!#REF! ->  | D24: =SUM(B24:C24) ->  | E24: =PGR!E24*IS!#REF! ->  | F24: =PGR!F24*IS!#REF! ->  | G24: =PGR!G24*IS!#REF! ->  | H24: =PGR!H24*IS!#REF! ->  | I24: =PGR!I24*IS!#REF! ->  | J24: =PGR!J24*IS!#REF! -> 
A25: 7.B Lock Trims - Electro Mechanical | B25: =PGR!B25*IS!#REF! ->  | C25: =PGR!C25*IS!#REF! ->  | D25: =SUM(B25:C25) ->  | E25: =PGR!E25*IS!#REF! ->  | F25: =PGR!F25*IS!#REF! ->  | G25: =PGR!G25*IS!#REF! ->  | H25: =PGR!H25*IS!#REF! ->  | I25: =PGR!I25*IS!#REF! ->  | J25: =PGR!J25*IS!#REF! -> 
A26: 8. Panic and Exit Devices | B26: =SUM(B27:B28) -> 
A27: 8.A Panic and Exit Devices - Mechanical | B27: =PGR!B27*IS!#REF! ->  | C27: =PGR!C27*IS!#REF! ->  | D27: =SUM(B27:C27) ->  | E27: =PGR!E27*IS!#REF! ->  | F27: =PGR!F27*IS!#REF! ->  | G27: =PGR!G27*IS!#REF! ->  | H27: =PGR!H27*IS!#REF! ->  | I27: =PGR!I27*IS!#REF! ->  | J27: =PGR!J27*IS!#REF! -> 
A28: 8.B Panic and Exit Devices - Electromechanical | B28: =PGR!B28*IS!#REF! ->  | C28: =PGR!C28*IS!#REF! ->  | D28: =SUM(B28:C28) ->  | E28: =PGR!E28*IS!#REF! ->  | F28: =PGR!F28*IS!#REF! ->  | G28: =PGR!G28*IS!#REF! ->  | H28: =PGR!H28*IS!#REF! ->  | I28: =PGR!I28*IS!#REF! ->  | J28: =PGR!J28*IS!#REF! -> 
A29: 9. Architectural and Accessory Hardware | B29: =SUM(B30:B31) -> 
A30: 9.A Architectural and Accessory Hardware - Mechanical | B30: =PGR!B30*IS!#REF! ->  | C30: =PGR!C30*IS!#REF! ->  | D30: =SUM(B30:C30) ->  | E30: =PGR!E30*IS!#REF! ->  | F30: =PGR!F30*IS!#REF! ->  | G30: =PGR!G30*IS!#REF! ->  | H30: =PGR!H30*IS!#REF! ->  | I30: =PGR!I30*IS!#REF! ->  | J30: =PGR!J30*IS!#REF! -> 
A31: 9.B Architectural Hardware and Accessory Hardware - Electro Mechanical | B31: =PGR!B31*IS!#REF! ->  | C31: =PGR!C31*IS!#REF! ->  | D31: =SUM(B31:C31) ->  | E31: =PGR!E31*IS!#REF! ->  | F31: =PGR!F31*IS!#REF! ->  | G31: =PGR!G31*IS!#REF! ->  | H31: =PGR!H31*IS!#REF! ->  | I31: =PGR!I31*IS!#REF! ->  | J31: =PGR!J31*IS!#REF! -> 
A32: 10. Strikes, Magnetic Locks and Bolts | B32: =SUM(B33) -> 
A33: 10.A Strikes, Magnetic Locks and Bolts (all elmech) | B33: =PGR!B33*IS!#REF! ->  | C33: =PGR!C33*IS!#REF! ->  | D33: =SUM(B33:C33) ->  | E33: =PGR!E33*IS!#REF! ->  | F33: =PGR!F33*IS!#REF! ->  | G33: =PGR!G33*IS!#REF! ->  | H33: =PGR!H33*IS!#REF! ->  | I33: =PGR!I33*IS!#REF! ->  | J33: =PGR!J33*IS!#REF! -> 
A34: 11. Identity and Access Solutions | B34: =SUM(B35) -> 
A35: 11.A Identity and Access Solutions (all elmech) | B35: =PGR!B35*IS!#REF! ->  | C35: =PGR!C35*IS!#REF! ->  | D35: =SUM(B35:C35) ->  | E35: =PGR!E35*IS!#REF! ->  | F35: =PGR!F35*IS!#REF! ->  | G35: =PGR!G35*IS!#REF! ->  | H35: =PGR!H35*IS!#REF! ->  | I35: =PGR!I35*IS!#REF! ->  | J35: =PGR!J35*IS!#REF! -> 
A36: 12. Security doors and fittings | B36: =SUM(B37:B38) -> 
A37: 12.A Security doors and fittings - Mechanical | B37: =PGR!B37*IS!#REF! ->  | C37: =PGR!C37*IS!#REF! ->  | D37: =SUM(B37:C37) ->  | E37: =PGR!E37*IS!#REF! ->  | F37: =PGR!F37*IS!#REF! ->  | G37: =PGR!G37*IS!#REF! ->  | H37: =PGR!H37*IS!#REF! ->  | I37: =PGR!I37*IS!#REF! ->  | J37: =PGR!J37*IS!#REF! ->  | K37: =SUM(D37:J37) -> 
A38: 12.B Security doors and fittings - Electromechanical | B38: =PGR!B38*IS!#REF! ->  | C38: =PGR!C38*IS!#REF! ->  | D38: =SUM(B38:C38) ->  | E38: =PGR!E38*IS!#REF! ->  | F38: =PGR!F38*IS!#REF! ->  | G38: =PGR!G38*IS!#REF! ->  | H38: =PGR!H38*IS!#REF! ->  | I38: =PGR!I38*IS!#REF! ->  | J38: =PGR!J38*IS!#REF! -> 
A39: 13. Window Locks and Systems | B39: =SUM(B40:B41) -> 
A40: 13.A Window Locks and Systems - Mechanical | B40: =PGR!B40*IS!#REF! ->  | C40: =PGR!C40*IS!#REF! ->  | D40: =SUM(B40:C40) ->  | E40: =PGR!E40*IS!#REF! ->  | F40: =PGR!F40*IS!#REF! ->  | G40: =PGR!G40*IS!#REF! ->  | H40: =PGR!H40*IS!#REF! ->  | I40: =PGR!I40*IS!#REF! ->  | J40: =PGR!J40*IS!#REF! -> 
A41: 13.B Window Locks and Systems - Electro Mechanical | B41: =PGR!B41*IS!#REF! ->  | C41: =PGR!C41*IS!#REF! ->  | D41: =SUM(B41:C41) ->  | E41: =PGR!E41*IS!#REF! ->  | F41: =PGR!F41*IS!#REF! ->  | G41: =PGR!G41*IS!#REF! ->  | H41: =PGR!H41*IS!#REF! ->  | I41: =PGR!I41*IS!#REF! ->  | J41: =PGR!J41*IS!#REF! -> 
A42: 14. Hospitality products | B42: =SUM(B43) -> 
A43: 14.A Hospitality products (all elmech) | B43: =PGR!B43*IS!#REF! ->  | C43: =PGR!C43*IS!#REF! ->  | D43: =SUM(B43:C43) ->  | E43: =PGR!E43*IS!#REF! ->  | F43: =PGR!F43*IS!#REF! ->  | G43: =PGR!G43*IS!#REF! ->  | H43: =PGR!H43*IS!#REF! ->  | I43: =PGR!I43*IS!#REF! ->  | J43: =PGR!J43*IS!#REF! -> 
A44: 15. Glass Hardware (all mech) | B44: =PGR!B44*IS!#REF! ->  | C44: =PGR!C44*IS!#REF! ->  | D44: =SUM(B44:C44) ->  | E44: =PGR!E44*IS!#REF! ->  | F44: =PGR!F44*IS!#REF! ->  | G44: =PGR!G44*IS!#REF! ->  | H44: =PGR!H44*IS!#REF! ->  | I44: =PGR!I44*IS!#REF! ->  | J44: =PGR!J44*IS!#REF! -> 
A45: 16. Residential Access Control | B45: =SUM(B46) -> 
A46: 16.A Residential Access Control - Electro Mechanical | B46: =PGR!B46*IS!#REF! ->  | C46: =PGR!C46*IS!#REF! ->  | D46: =SUM(B46:C46) ->  | E46: =PGR!E46*IS!#REF! ->  | F46: =PGR!F46*IS!#REF! ->  | G46: =PGR!G46*IS!#REF! ->  | H46: =PGR!H46*IS!#REF! ->  | I46: =PGR!I46*IS!#REF! ->  | J46: =PGR!J46*IS!#REF! -> 
A47: 17. Residential Electronic security | B47: =SUM(B48) -> 
A48: 17.A Residential Electronic security (all elmech) | B48: =PGR!B48*IS!#REF! ->  | C48: =PGR!C48*IS!#REF! ->  | D48: =SUM(B48:C48) ->  | E48: =PGR!E48*IS!#REF! ->  | F48: =PGR!F48*IS!#REF! ->  | G48: =PGR!G48*IS!#REF! ->  | H48: =PGR!H48*IS!#REF! ->  | I48: =PGR!I48*IS!#REF! ->  | J48: =PGR!J48*IS!#REF! -> 
A49: 18. Industrial Locks | B49: =SUM(B50:B51) -> 
A50: 18.A Industrial Locks - mechanical | B50: =PGR!B50*IS!#REF! ->  | C50: =PGR!C50*IS!#REF! ->  | D50: =SUM(B50:C50) ->  | E50: =PGR!E50*IS!#REF! ->  | F50: =PGR!F50*IS!#REF! ->  | G50: =PGR!G50*IS!#REF! ->  | H50: =PGR!H50*IS!#REF! ->  | I50: =PGR!I50*IS!#REF! ->  | J50: =PGR!J50*IS!#REF! -> 
A51: 18.B Industrial Locks - electro mechanical | B51: =PGR!B51*IS!#REF! ->  | C51: =PGR!C51*IS!#REF! ->  | D51: =SUM(B51:C51) ->  | E51: =PGR!E51*IS!#REF! ->  | F51: =PGR!F51*IS!#REF! ->  | G51: =PGR!G51*IS!#REF! ->  | H51: =PGR!H51*IS!#REF! ->  | I51: =PGR!I51*IS!#REF! ->  | J51: =PGR!J51*IS!#REF! -> 
A52: 19. Electronic Accessories | B52: =SUM(B53) -> 
A53: 19.A Electronic Accessories (all elmech) | B53: =PGR!B53*IS!#REF! ->  | C53: =PGR!C53*IS!#REF! ->  | D53: =SUM(B53:C53) ->  | E53: =PGR!E53*IS!#REF! ->  | F53: =PGR!F53*IS!#REF! ->  | G53: =PGR!G53*IS!#REF! ->  | H53: =PGR!H53*IS!#REF! ->  | I53: =PGR!I53*IS!#REF! ->  | J53: =PGR!J53*IS!#REF! -> 
A54: 20. Fence Systems - mechanical
A55: 21. Pedestrian Doors Entrance Systems
A56: 22. Industrial Products Entrance Systems
A57: 23. Residential Products Entrance Systems
A58: 24. Components and Hardware Entrance Systems
A59: 25. Automation Entrance Systems
A60: 26. Service | B60: =SUM(B61:B68) ->  | K60: =SUM(D60:J60) -> 
A61: 26.1 Contracts | B61: =PGR!B61*IS!#REF! ->  | C61: =PGR!C61*IS!#REF! ->  | D61: =SUM(B61:C61) ->  | E61: =PGR!E61*IS!#REF! ->  | F61: =PGR!F61*IS!#REF! ->  | G61: =PGR!G61*IS!#REF! ->  | H61: =PGR!H61*IS!#REF! ->  | I61: =PGR!I61*IS!#REF! ->  | J61: =PGR!J61*IS!#REF! -> 
A62: 26.2 Labor Sales | B62: =PGR!B62*IS!#REF! ->  | C62: =PGR!C62*IS!#REF! ->  | E62: =PGR!E62*IS!#REF! ->  | F62: =PGR!F62*IS!#REF! ->  | G62: =PGR!G62*IS!#REF! ->  | H62: =PGR!H62*IS!#REF! ->  | I62: =PGR!I62*IS!#REF! ->  | J62: =PGR!J62*IS!#REF! -> 
A63: 26.3 Spares | B63: =PGR!B63*IS!#REF! ->  | C63: =PGR!C63*IS!#REF! ->  | E63: =PGR!E63*IS!#REF! ->  | F63: =PGR!F63*IS!#REF! ->  | G63: =PGR!G63*IS!#REF! ->  | H63: =PGR!H63*IS!#REF! ->  | I63: =PGR!I63*IS!#REF! ->  | J63: =PGR!J63*IS!#REF! -> 
A64: 26.4 Upgrades and Modernization Kits | B64: =PGR!B64*IS!#REF! ->  | C64: =PGR!C64*IS!#REF! ->  | E64: =PGR!E64*IS!#REF! ->  | F64: =PGR!F64*IS!#REF! ->  | G64: =PGR!G64*IS!#REF! ->  | H64: =PGR!H64*IS!#REF! ->  | I64: =PGR!I64*IS!#REF! ->  | J64: =PGR!J64*IS!#REF! -> 
A65: 26.5 Breakdowns Contract Doors | B65: =PGR!B65*IS!#REF! ->  | C65: =PGR!C65*IS!#REF! ->  | E65: =PGR!E65*IS!#REF! ->  | F65: =PGR!F65*IS!#REF! ->  | G65: =PGR!G65*IS!#REF! ->  | H65: =PGR!H65*IS!#REF! ->  | I65: =PGR!I65*IS!#REF! ->  | J65: =PGR!J65*IS!#REF! -> 
A66: 26.6 Breakdowns Non Contract Doors | B66: =PGR!B66*IS!#REF! ->  | C66: =PGR!C66*IS!#REF! ->  | E66: =PGR!E66*IS!#REF! ->  | F66: =PGR!F66*IS!#REF! ->  | G66: =PGR!G66*IS!#REF! ->  | H66: =PGR!H66*IS!#REF! ->  | I66: =PGR!I66*IS!#REF! ->  | J66: =PGR!J66*IS!#REF! -> 
A67: 26.7 e-maintenance Contracts | B67: =PGR!B67*IS!#REF! ->  | C67: =PGR!C67*IS!#REF! ->  | E67: =PGR!E67*IS!#REF! ->  | F67: =PGR!F67*IS!#REF! ->  | G67: =PGR!G67*IS!#REF! ->  | H67: =PGR!H67*IS!#REF! ->  | I67: =PGR!I67*IS!#REF! ->  | J67: =PGR!J67*IS!#REF! -> 
A68: 26.8 Other Service | B68: =PGR!B68*IS!#REF! ->  | C68: =PGR!C68*IS!#REF! ->  | E68: =PGR!E68*IS!#REF! ->  | F68: =PGR!F68*IS!#REF! ->  | G68: =PGR!G68*IS!#REF! ->  | H68: =PGR!H68*IS!#REF! ->  | I68: =PGR!I68*IS!#REF! ->  | J68: =PGR!J68*IS!#REF! -> 
A69: 27. Other | B69: =SUM(B70:B71) -> 
A70: 27.A Other - Other products mechanical | B70: =PGR!B70*IS!#REF! ->  | C70: =PGR!C70*IS!#REF! ->  | D70: =SUM(B70:C70) ->  | E70: =PGR!E70*IS!#REF! ->  | F70: =PGR!F70*IS!#REF! ->  | G70: =PGR!G70*IS!#REF! ->  | H70: =PGR!H70*IS!#REF! ->  | I70: =PGR!I70*IS!#REF! ->  | J70: =PGR!J70*IS!#REF! -> 
A71: 27.B Other - Other products electro mechanical | B71: =PGR!B71*IS!#REF! ->  | C71: =PGR!C71*IS!#REF! ->  | D71: =SUM(B71:C71) ->  | E71: =PGR!E71*IS!#REF! ->  | F71: =PGR!F71*IS!#REF! ->  | G71: =PGR!G71*IS!#REF! ->  | H71: =PGR!H71*IS!#REF! ->  | I71: =PGR!I71*IS!#REF! ->  | J71: =PGR!J71*IS!#REF! -> 
A72: Total Products | B72: =B69+B60+B52+B49+B47+B45+B42+B39+B36+B34+B32+B29+B26+B23+B20+B17+B14+B11+B8+B5 ->  | C72: =C69+C60+C52+C49+C47+C45+C42+C39+C36+C34+C32+C29+C26+C23+C20+C17+C14+C11+C8+C5 ->  | D72: =SUM(B72:C72) ->  | E72: =E69+E60+E52+E49+E47+E45+E42+E39+E36+E34+E32+E29+E26+E23+E20+E17+E14+E11+E8+E5 -> 
B73: =B72-IS!B6 ->  | C73: =C72-IS!B7 ->  | E73: =E72-IS!B14 ->  | F73: =F72-IS!B15 ->  | G73: =G72-IS!B16 ->  | H73: =H72-IS!B17 ->  | I73: =I72-IS!B18 ->  | J73: =J72-IS!B19 ->  | K73: =K72-IS!B20 -> 

Sheet SCountry (hidden)
C1: Jan | D1: Feb | E1: Mar | F1: Apr | G1: May | H1: Sep | I1: Jul | J1: Aug | K1: Sep | L1: Oct | M1: Nov | N1: Dec | P1: Jan | Q1: Feb | R1: Mar | S1: Apr | T1: May | U1: Jun | V1: Jul | W1: Aug | X1: Sep | Y1: Oct | Z1: Nov | AA1: Dec
C2: YTD | D2: YTD | E2: YTD | F2: YTD | G2: YTD | H2: YTD | I2: YTD | J2: YTD | K2: YTD | L2: YTD | M2: YTD | N2: YTD | P2: YTD | Q2: YTD | R2: YTD | S2: YTD | T2: YTD | U2: YTD | V2: YTD | W2: YTD | X2: YTD | Y2: YTD | Z2: YTD | AA2: YTD
A3: Net sales, ext | B3: EUROPE | C3: =C4+C23 -> 0 | D3: 0 | E3: 0 | F3: 0 | G3: 0 | H3: 0 | I3: 0 | J3: 0 | K3: 0 | L3: 0 | M3: 0 | N3: 0 | P3: =P4+P23 -> 
A4: Net sales, ext | B4: WESTERNEUROPE | C4: =SUM(C5:C22) -> 0 | D4: 0 | E4: 0 | F4: 0 | G4: 0 | H4: 0 | I4: 0 | J4: 0 | K4: 0 | L4: 0 | M4: 0 | N4: 0 | P4: =SUM(P5:P22) -> 
A5: Net sales, ext | B5: AT | P5: =C5*IS!#REF! ->  | Q5: =D5*IS!#REF! ->  | R5: =E5*IS!#REF! ->  | S5: =F5*IS!#REF! ->  | T5: =G5*IS!#REF! ->  | U5: =H5*IS!#REF! ->  | V5: =I5*IS!#REF! ->  | W5: =J5*IS!#REF! ->  | X5: =K5*IS!#REF! ->  | Y5: =L5*IS!#REF! ->  | Z5: =M5*IS!#REF! ->  | AA5: =N5*IS!#REF! -> 
A6: Net sales, ext | B6: BE | P6: =C6*IS!#REF! ->  | Q6: =D6*IS!#REF! ->  | R6: =E6*IS!#REF! ->  | S6: =F6*IS!#REF! ->  | T6: =G6*IS!#REF! ->  | U6: =H6*IS!#REF! ->  | V6: =I6*IS!#REF! ->  | W6: =J6*IS!#REF! ->  | X6: =K6*IS!#REF! ->  | Y6: =L6*IS!#REF! ->  | Z6: =M6*IS!#REF! ->  | AA6: =N6*IS!#REF! -> 
A7: Net sales, ext | B7: DK | P7: =C7*IS!#REF! ->  | Q7: =D7*IS!#REF! ->  | R7: =E7*IS!#REF! ->  | S7: =F7*IS!#REF! ->  | T7: =G7*IS!#REF! ->  | U7: =H7*IS!#REF! ->  | V7: =I7*IS!#REF! ->  | W7: =J7*IS!#REF! ->  | X7: =K7*IS!#REF! ->  | Y7: =L7*IS!#REF! ->  | Z7: =M7*IS!#REF! ->  | AA7: =N7*IS!#REF! -> 
A8: Net sales, ext | B8: FI | P8: =C8*IS!#REF! ->  | Q8: =D8*IS!#REF! ->  | R8: =E8*IS!#REF! ->  | S8: =F8*IS!#REF! ->  | T8: =G8*IS!#REF! ->  | U8: =H8*IS!#REF! ->  | V8: =I8*IS!#REF! ->  | W8: =J8*IS!#REF! ->  | X8: =K8*IS!#REF! ->  | Y8: =L8*IS!#REF! ->  | Z8: =M8*IS!#REF! ->  | AA8: =N8*IS!#REF! -> 
A9: Net sales, ext | B9: FR | P9: =C9*IS!#REF! ->  | Q9: =D9*IS!#REF! ->  | R9: =E9*IS!#REF! ->  | S9: =F9*IS!#REF! ->  | T9: =G9*IS!#REF! ->  | U9: =H9*IS!#REF! ->  | V9: =I9*IS!#REF! ->  | W9: =J9*IS!#REF! ->  | X9: =K9*IS!#REF! ->  | Y9: =L9*IS!#REF! ->  | Z9: =M9*IS!#REF! ->  | AA9: =N9*IS!#REF! -> 
A10: Net sales, ext | B10: DE | P10: =C10*IS!#REF! ->  | Q10: =D10*IS!#REF! ->  | R10: =E10*IS!#REF! ->  | S10: =F10*IS!#REF! ->  | T10: =G10*IS!#REF! ->  | U10: =H10*IS!#REF! ->  | V10: =I10*IS!#REF! ->  | W10: =J10*IS!#REF! ->  | X10: =K10*IS!#REF! ->  | Y10: =L10*IS!#REF! ->  | Z10: =M10*IS!#REF! ->  | AA10: =N10*IS!#REF! -> 
A11: Net sales, ext | B11: GR | P11: =C11*IS!#REF! ->  | Q11: =D11*IS!#REF! ->  | R11: =E11*IS!#REF! ->  | S11: =F11*IS!#REF! ->  | T11: =G11*IS!#REF! ->  | U11: =H11*IS!#REF! ->  | V11: =I11*IS!#REF! ->  | W11: =J11*IS!#REF! ->  | X11: =K11*IS!#REF! ->  | Y11: =L11*IS!#REF! ->  | Z11: =M11*IS!#REF! ->  | AA11: =N11*IS!#REF! -> 
A12: Net sales, ext | B12: IE | P12: =C12*IS!#REF! ->  | Q12: =D12*IS!#REF! ->  | R12: =E12*IS!#REF! ->  | S12: =F12*IS!#REF! ->  | T12: =G12*IS!#REF! ->  | U12: =H12*IS!#REF! ->  | V12: =I12*IS!#REF! ->  | W12: =J12*IS!#REF! ->  | X12: =K12*IS!#REF! ->  | Y12: =L12*IS!#REF! ->  | Z12: =M12*IS!#REF! ->  | AA12: =N12*IS!#REF! -> 
A13: Net sales, ext | B13: IT | P13: =C13*IS!#REF! ->  | Q13: =D13*IS!#REF! ->  | R13: =E13*IS!#REF! ->  | S13: =F13*IS!#REF! ->  | T13: =G13*IS!#REF! ->  | U13: =H13*IS!#REF! ->  | V13: =I13*IS!#REF! ->  | W13: =J13*IS!#REF! ->  | X13: =K13*IS!#REF! ->  | Y13: =L13*IS!#REF! ->  | Z13: =M13*IS!#REF! ->  | AA13: =N13*IS!#REF! -> 
A14: Net sales, ext | B14: NL | P14: =C14*IS!#REF! ->  | Q14: =D14*IS!#REF! ->  | R14: =E14*IS!#REF! ->  | S14: =F14*IS!#REF! ->  | T14: =G14*IS!#REF! ->  | U14: =H14*IS!#REF! ->  | V14: =I14*IS!#REF! ->  | W14: =J14*IS!#REF! ->  | X14: =K14*IS!#REF! ->  | Y14: =L14*IS!#REF! ->  | Z14: =M14*IS!#REF! ->  | AA14: =N14*IS!#REF! -> 
A15: Net sales, ext | B15: NO | P15: =C15*IS!#REF! ->  | Q15: =D15*IS!#REF! ->  | R15: =E15*IS!#REF! ->  | S15: =F15*IS!#REF! ->  | T15: =G15*IS!#REF! ->  | U15: =H15*IS!#REF! ->  | V15: =I15*IS!#REF! ->  | W15: =J15*IS!#REF! ->  | X15: =K15*IS!#REF! ->  | Y15: =L15*IS!#REF! ->  | Z15: =M15*IS!#REF! ->  | AA15: =N15*IS!#REF! -> 
A16: Net sales, ext | B16: PT | P16: =C16*IS!#REF! ->  | Q16: =D16*IS!#REF! ->  | R16: =E16*IS!#REF! ->  | S16: =F16*IS!#REF! ->  | T16: =G16*IS!#REF! ->  | U16: =H16*IS!#REF! ->  | V16: =I16*IS!#REF! ->  | W16: =J16*IS!#REF! ->  | X16: =K16*IS!#REF! ->  | Y16: =L16*IS!#REF! ->  | Z16: =M16*IS!#REF! ->  | AA16: =N16*IS!#REF! -> 
A17: Net sales, ext | B17: ES | P17: =C17*IS!#REF! ->  | Q17: =D17*IS!#REF! ->  | R17: =E17*IS!#REF! ->  | S17: =F17*IS!#REF! ->  | T17: =G17*IS!#REF! ->  | U17: =H17*IS!#REF! ->  | V17: =I17*IS!#REF! ->  | W17: =J17*IS!#REF! ->  | X17: =K17*IS!#REF! ->  | Y17: =L17*IS!#REF! ->  | Z17: =M17*IS!#REF! ->  | AA17: =N17*IS!#REF! -> 
A18: Net sales, ext | B18: SE | P18: =C18*IS!#REF! ->  | Q18: =D18*IS!#REF! ->  | R18: =E18*IS!#REF! ->  | S18: =F18*IS!#REF! ->  | T18: =G18*IS!#REF! ->  | U18: =H18*IS!#REF! ->  | V18: =I18*IS!#REF! ->  | W18: =J18*IS!#REF! ->  | X18: =K18*IS!#REF! ->  | Y18: =L18*IS!#REF! ->  | Z18: =M18*IS!#REF! ->  | AA18: =N18*IS!#REF! -> 
A19: Net sales, ext | B19: CH | P19: =C19*IS!#REF! ->  | Q19: =D19*IS!#REF! ->  | R19: =E19*IS!#REF! ->  | S19: =F19*IS!#REF! ->  | T19: =G19*IS!#REF! ->  | U19: =H19*IS!#REF! ->  | V19: =I19*IS!#REF! ->  | W19: =J19*IS!#REF! ->  | X19: =K19*IS!#REF! ->  | Y19: =L19*IS!#REF! ->  | Z19: =M19*IS!#REF! ->  | AA19: =N19*IS!#REF! -> 
A20: Net sales, ext | B20: GB | P20: =C20*IS!#REF! ->  | Q20: =D20*IS!#REF! ->  | R20: =E20*IS!#REF! ->  | S20: =F20*IS!#REF! ->  | T20: =G20*IS!#REF! ->  | U20: =H20*IS!#REF! ->  | V20: =I20*IS!#REF! ->  | W20: =J20*IS!#REF! ->  | X20: =K20*IS!#REF! ->  | Y20: =L20*IS!#REF! ->  | Z20: =M20*IS!#REF! ->  | AA20: =N20*IS!#REF! -> 
A21: Net sales, ext | B21: IS | P21: =C21*IS!#REF! ->  | Q21: =D21*IS!#REF! ->  | R21: =E21*IS!#REF! ->  | S21: =F21*IS!#REF! ->  | T21: =G21*IS!#REF! ->  | U21: =H21*IS!#REF! ->  | V21: =I21*IS!#REF! ->  | W21: =J21*IS!#REF! ->  | X21: =K21*IS!#REF! ->  | Y21: =L21*IS!#REF! ->  | Z21: =M21*IS!#REF! ->  | AA21: =N21*IS!#REF! -> 
A22: Net sales, ext | B22: LU | P22: =C22*IS!#REF! ->  | Q22: =D22*IS!#REF! ->  | R22: =E22*IS!#REF! ->  | S22: =F22*IS!#REF! ->  | T22: =G22*IS!#REF! ->  | U22: =H22*IS!#REF! ->  | V22: =I22*IS!#REF! ->  | W22: =J22*IS!#REF! ->  | X22: =K22*IS!#REF! ->  | Y22: =L22*IS!#REF! ->  | Z22: =M22*IS!#REF! ->  | AA22: =N22*IS!#REF! -> 
A23: Net sales, ext | B23: EASTERNEUROPE | C23: =SUM(C24:C48) -> 0 | D23: 0 | E23: 0 | F23: 0 | G23: 0 | H23: 0 | I23: 0 | J23: 0 | K23: 0 | L23: 0 | M23: 0 | N23: 0 | P23: =SUM(P24:P48) -> 
A24: Net sales, ext | B24: AL | P24: =C24*IS!#REF! ->  | Q24: =D24*IS!#REF! ->  | R24: =E24*IS!#REF! ->  | S24: =F24*IS!#REF! ->  | T24: =G24*IS!#REF! ->  | U24: =H24*IS!#REF! ->  | V24: =I24*IS!#REF! ->  | W24: =J24*IS!#REF! ->  | X24: =K24*IS!#REF! ->  | Y24: =L24*IS!#REF! ->  | Z24: =M24*IS!#REF! ->  | AA24: =N24*IS!#REF! -> 
A25: Net sales, ext | B25: AM | P25: =C25*IS!#REF! ->  | Q25: =D25*IS!#REF! ->  | R25: =E25*IS!#REF! ->  | S25: =F25*IS!#REF! ->  | T25: =G25*IS!#REF! ->  | U25: =H25*IS!#REF! ->  | V25: =I25*IS!#REF! ->  | W25: =J25*IS!#REF! ->  | X25: =K25*IS!#REF! ->  | Y25: =L25*IS!#REF! ->  | Z25: =M25*IS!#REF! ->  | AA25: =N25*IS!#REF! -> 
A26: Net sales, ext | B26: AZ | P26: =C26*IS!#REF! ->  | Q26: =D26*IS!#REF! ->  | R26: =E26*IS!#REF! ->  | S26: =F26*IS!#REF! ->  | T26: =G26*IS!#REF! ->  | U26: =H26*IS!#REF! ->  | V26: =I26*IS!#REF! ->  | W26: =J26*IS!#REF! ->  | X26: =K26*IS!#REF! ->  | Y26: =L26*IS!#REF! ->  | Z26: =M26*IS!#REF! ->  | AA26: =N26*IS!#REF! -> 
A27: Net sales, ext | B27: BY | P27: =C27*IS!#REF! ->  | Q27: =D27*IS!#REF! ->  | R27: =E27*IS!#REF! ->  | S27: =F27*IS!#REF! ->  | T27: =G27*IS!#REF! ->  | U27: =H27*IS!#REF! ->  | V27: =I27*IS!#REF! ->  | W27: =J27*IS!#REF! ->  | X27: =K27*IS!#REF! ->  | Y27: =L27*IS!#REF! ->  | Z27: =M27*IS!#REF! ->  | AA27: =N27*IS!#REF! -> 
A28: Net sales, ext | B28: BA | P28: =C28*IS!#REF! ->  | Q28: =D28*IS!#REF! ->  | R28: =E28*IS!#REF! ->  | S28: =F28*IS!#REF! ->  | T28: =G28*IS!#REF! ->  | U28: =H28*IS!#REF! ->  | V28: =I28*IS!#REF! ->  | W28: =J28*IS!#REF! ->  | X28: =K28*IS!#REF! ->  | Y28: =L28*IS!#REF! ->  | Z28: =M28*IS!#REF! ->  | AA28: =N28*IS!#REF! -> 
A29: Net sales, ext | B29: BG | P29: =C29*IS!#REF! ->  | Q29: =D29*IS!#REF! ->  | R29: =E29*IS!#REF! ->  | S29: =F29*IS!#REF! ->  | T29: =G29*IS!#REF! ->  | U29: =H29*IS!#REF! ->  | V29: =I29*IS!#REF! ->  | W29: =J29*IS!#REF! ->  | X29: =K29*IS!#REF! ->  | Y29: =L29*IS!#REF! ->  | Z29: =M29*IS!#REF! ->  | AA29: =N29*IS!#REF! -> 
A30: Net sales, ext | B30: HR | P30: =C30*IS!#REF! ->  | Q30: =D30*IS!#REF! ->  | R30: =E30*IS!#REF! ->  | S30: =F30*IS!#REF! ->  | T30: =G30*IS!#REF! ->  | U30: =H30*IS!#REF! ->  | V30: =I30*IS!#REF! ->  | W30: =J30*IS!#REF! ->  | X30: =K30*IS!#REF! ->  | Y30: =L30*IS!#REF! ->  | Z30: =M30*IS!#REF! ->  | AA30: =N30*IS!#REF! -> 
A31: Net sales, ext | B31: GE | P31: =C31*IS!#REF! ->  | Q31: =D31*IS!#REF! ->  | R31: =E31*IS!#REF! ->  | S31: =F31*IS!#REF! ->  | T31: =G31*IS!#REF! ->  | U31: =H31*IS!#REF! ->  | V31: =I31*IS!#REF! ->  | W31: =J31*IS!#REF! ->  | X31: =K31*IS!#REF! ->  | Y31: =L31*IS!#REF! ->  | Z31: =M31*IS!#REF! ->  | AA31: =N31*IS!#REF! -> 
A32: Net sales, ext | B32: HU | P32: =C32*IS!#REF! ->  | Q32: =D32*IS!#REF! ->  | R32: =E32*IS!#REF! ->  | S32: =F32*IS!#REF! ->  | T32: =G32*IS!#REF! ->  | U32: =H32*IS!#REF! ->  | V32: =I32*IS!#REF! ->  | W32: =J32*IS!#REF! ->  | X32: =K32*IS!#REF! ->  | Y32: =L32*IS!#REF! ->  | Z32: =M32*IS!#REF! ->  | AA32: =N32*IS!#REF! -> 
A33: Net sales, ext | B33: MK | P33: =C33*IS!#REF! ->  | Q33: =D33*IS!#REF! ->  | R33: =E33*IS!#REF! ->  | S33: =F33*IS!#REF! ->  | T33: =G33*IS!#REF! ->  | U33: =H33*IS!#REF! ->  | V33: =I33*IS!#REF! ->  | W33: =J33*IS!#REF! ->  | X33: =K33*IS!#REF! ->  | Y33: =L33*IS!#REF! ->  | Z33: =M33*IS!#REF! ->  | AA33: =N33*IS!#REF! -> 
A34: Net sales, ext | B34: MD | P34: =C34*IS!#REF! ->  | Q34: =D34*IS!#REF! ->  | R34: =E34*IS!#REF! ->  | S34: =F34*IS!#REF! ->  | T34: =G34*IS!#REF! ->  | U34: =H34*IS!#REF! ->  | V34: =I34*IS!#REF! ->  | W34: =J34*IS!#REF! ->  | X34: =K34*IS!#REF! ->  | Y34: =L34*IS!#REF! ->  | Z34: =M34*IS!#REF! ->  | AA34: =N34*IS!#REF! -> 
A35: Net sales, ext | B35: ME | P35: =C35*IS!#REF! ->  | Q35: =D35*IS!#REF! ->  | R35: =E35*IS!#REF! ->  | S35: =F35*IS!#REF! ->  | T35: =G35*IS!#REF! ->  | U35: =H35*IS!#REF! ->  | V35: =I35*IS!#REF! ->  | W35: =J35*IS!#REF! ->  | X35: =K35*IS!#REF! ->  | Y35: =L35*IS!#REF! ->  | Z35: =M35*IS!#REF! ->  | AA35: =N35*IS!#REF! -> 
A36: Net sales, ext | B36: RS | P36: =C36*IS!#REF! ->  | Q36: =D36*IS!#REF! ->  | R36: =E36*IS!#REF! ->  | S36: =F36*IS!#REF! ->  | T36: =G36*IS!#REF! ->  | U36: =H36*IS!#REF! ->  | V36: =I36*IS!#REF! ->  | W36: =J36*IS!#REF! ->  | X36: =K36*IS!#REF! ->  | Y36: =L36*IS!#REF! ->  | Z36: =M36*IS!#REF! ->  | AA36: =N36*IS!#REF! -> 
A37: Net sales, ext | B37: SI | P37: =C37*IS!#REF! ->  | Q37: =D37*IS!#REF! ->  | R37: =E37*IS!#REF! ->  | S37: =F37*IS!#REF! ->  | T37: =G37*IS!#REF! ->  | U37: =H37*IS!#REF! ->  | V37: =I37*IS!#REF! ->  | W37: =J37*IS!#REF! ->  | X37: =K37*IS!#REF! ->  | Y37: =L37*IS!#REF! ->  | Z37: =M37*IS!#REF! ->  | AA37: =N37*IS!#REF! -> 
A38: Net sales, ext | B38: UA | P38: =C38*IS!#REF! ->  | Q38: =D38*IS!#REF! ->  | R38: =E38*IS!#REF! ->  | S38: =F38*IS!#REF! ->  | T38: =G38*IS!#REF! ->  | U38: =H38*IS!#REF! ->  | V38: =I38*IS!#REF! ->  | W38: =J38*IS!#REF! ->  | X38: =K38*IS!#REF! ->  | Y38: =L38*IS!#REF! ->  | Z38: =M38*IS!#REF! ->  | AA38: =N38*IS!#REF! -> 
A39: Net sales, ext | B39: EE | P39: =C39*IS!#REF! ->  | Q39: =D39*IS!#REF! ->  | R39: =E39*IS!#REF! ->  | S39: =F39*IS!#REF! ->  | T39: =G39*IS!#REF! ->  | U39: =H39*IS!#REF! ->  | V39: =I39*IS!#REF! ->  | W39: =J39*IS!#REF! ->  | X39: =K39*IS!#REF! ->  | Y39: =L39*IS!#REF! ->  | Z39: =M39*IS!#REF! ->  | AA39: =N39*IS!#REF! -> 
A40: Net sales, ext | B40: LV | P40: =C40*IS!#REF! ->  | Q40: =D40*IS!#REF! ->  | R40: =E40*IS!#REF! ->  | S40: =F40*IS!#REF! ->  | T40: =G40*IS!#REF! ->  | U40: =H40*IS!#REF! ->  | V40: =I40*IS!#REF! ->  | W40: =J40*IS!#REF! ->  | X40: =K40*IS!#REF! ->  | Y40: =L40*IS!#REF! ->  | Z40: =M40*IS!#REF! ->  | AA40: =N40*IS!#REF! -> 
A41: Net sales, ext | B41: LT | P41: =C41*IS!#REF! ->  | Q41: =D41*IS!#REF! ->  | R41: =E41*IS!#REF! ->  | S41: =F41*IS!#REF! ->  | T41: =G41*IS!#REF! ->  | U41: =H41*IS!#REF! ->  | V41: =I41*IS!#REF! ->  | W41: =J41*IS!#REF! ->  | X41: =K41*IS!#REF! ->  | Y41: =L41*IS!#REF! ->  | Z41: =M41*IS!#REF! ->  | AA41: =N41*IS!#REF! -> 
A42: Net sales, ext | B42: CZ | P42: =C42*IS!#REF! ->  | Q42: =D42*IS!#REF! ->  | R42: =E42*IS!#REF! ->  | S42: =F42*IS!#REF! ->  | T42: =G42*IS!#REF! ->  | U42: =H42*IS!#REF! ->  | V42: =I42*IS!#REF! ->  | W42: =J42*IS!#REF! ->  | X42: =K42*IS!#REF! ->  | Y42: =L42*IS!#REF! ->  | Z42: =M42*IS!#REF! ->  | AA42: =N42*IS!#REF! -> 
A43: Net sales, ext | B43: PL | P43: =C43*IS!#REF! ->  | Q43: =D43*IS!#REF! ->  | R43: =E43*IS!#REF! ->  | S43: =F43*IS!#REF! ->  | T43: =G43*IS!#REF! ->  | U43: =H43*IS!#REF! ->  | V43: =I43*IS!#REF! ->  | W43: =J43*IS!#REF! ->  | X43: =K43*IS!#REF! ->  | Y43: =L43*IS!#REF! ->  | Z43: =M43*IS!#REF! ->  | AA43: =N43*IS!#REF! -> 
A44: Net sales, ext | B44: RO | P44: =C44*IS!#REF! ->  | Q44: =D44*IS!#REF! ->  | R44: =E44*IS!#REF! ->  | S44: =F44*IS!#REF! ->  | T44: =G44*IS!#REF! ->  | U44: =H44*IS!#REF! ->  | V44: =I44*IS!#REF! ->  | W44: =J44*IS!#REF! ->  | X44: =K44*IS!#REF! ->  | Y44: =L44*IS!#REF! ->  | Z44: =M44*IS!#REF! ->  | AA44: =N44*IS!#REF! -> 
A45: Net sales, ext | B45: RU | P45: =C45*IS!#REF! ->  | Q45: =D45*IS!#REF! ->  | R45: =E45*IS!#REF! ->  | S45: =F45*IS!#REF! ->  | T45: =G45*IS!#REF! ->  | U45: =H45*IS!#REF! ->  | V45: =I45*IS!#REF! ->  | W45: =J45*IS!#REF! ->  | X45: =K45*IS!#REF! ->  | Y45: =L45*IS!#REF! ->  | Z45: =M45*IS!#REF! ->  | AA45: =N45*IS!#REF! -> 
A46: Net sales, ext | B46: SK | P46: =C46*IS!#REF! ->  | Q46: =D46*IS!#REF! ->  | R46: =E46*IS!#REF! ->  | S46: =F46*IS!#REF! ->  | T46: =G46*IS!#REF! ->  | U46: =H46*IS!#REF! ->  | V46: =I46*IS!#REF! ->  | W46: =J46*IS!#REF! ->  | X46: =K46*IS!#REF! ->  | Y46: =L46*IS!#REF! ->  | Z46: =M46*IS!#REF! ->  | AA46: =N46*IS!#REF! -> 
A47: Net sales, ext | B47: TR | P47: =C47*IS!#REF! ->  | Q47: =D47*IS!#REF! ->  | R47: =E47*IS!#REF! ->  | S47: =F47*IS!#REF! ->  | T47: =G47*IS!#REF! ->  | U47: =H47*IS!#REF! ->  | V47: =I47*IS!#REF! ->  | W47: =J47*IS!#REF! ->  | X47: =K47*IS!#REF! ->  | Y47: =L47*IS!#REF! ->  | Z47: =M47*IS!#REF! ->  | AA47: =N47*IS!#REF! -> 
A48: Net sales, ext | B48: OTHEREUROPE | P48: =C48*IS!#REF! ->  | Q48: =D48*IS!#REF! ->  | R48: =E48*IS!#REF! ->  | S48: =F48*IS!#REF! ->  | T48: =G48*IS!#REF! ->  | U48: =H48*IS!#REF! ->  | V48: =I48*IS!#REF! ->  | W48: =J48*IS!#REF! ->  | X48: =K48*IS!#REF! ->  | Y48: =L48*IS!#REF! ->  | Z48: =M48*IS!#REF! ->  | AA48: =N48*IS!#REF! -> 
A49: Net sales, ext | B49: NORTHAM | C49: =SUM(C50:C52) -> 0 | D49: 0 | E49: 0 | F49: 0 | G49: 0 | H49: 0 | I49: 0 | J49: 0 | K49: 0 | L49: 0 | M49: 0 | N49: 0 | P49: =SUM(P50:P52) -> 
A50: Net sales, ext | B50: CA | P50: =C50*IS!#REF! ->  | Q50: =D50*IS!#REF! ->  | R50: =E50*IS!#REF! ->  | S50: =F50*IS!#REF! ->  | T50: =G50*IS!#REF! ->  | U50: =H50*IS!#REF! ->  | V50: =I50*IS!#REF! ->  | W50: =J50*IS!#REF! ->  | X50: =K50*IS!#REF! ->  | Y50: =L50*IS!#REF! ->  | Z50: =M50*IS!#REF! ->  | AA50: =N50*IS!#REF! -> 
A51: Net sales, ext | B51: MX | P51: =C51*IS!#REF! ->  | Q51: =D51*IS!#REF! ->  | R51: =E51*IS!#REF! ->  | S51: =F51*IS!#REF! ->  | T51: =G51*IS!#REF! ->  | U51: =H51*IS!#REF! ->  | V51: =I51*IS!#REF! ->  | W51: =J51*IS!#REF! ->  | X51: =K51*IS!#REF! ->  | Y51: =L51*IS!#REF! ->  | Z51: =M51*IS!#REF! ->  | AA51: =N51*IS!#REF! -> 
A52: Net sales, ext | B52: US | P52: =C52*IS!#REF! ->  | Q52: =D52*IS!#REF! ->  | R52: =E52*IS!#REF! ->  | S52: =F52*IS!#REF! ->  | T52: =G52*IS!#REF! ->  | U52: =H52*IS!#REF! ->  | V52: =I52*IS!#REF! ->  | W52: =J52*IS!#REF! ->  | X52: =K52*IS!#REF! ->  | Y52: =L52*IS!#REF! ->  | Z52: =M52*IS!#REF! ->  | AA52: =N52*IS!#REF! -> 
A53: Net sales, ext | B53: CENTRSOUTHAM | C53: =C54+C76 -> 0 | D53: 0 | E53: 0 | F53: 0 | G53: 0 | H53: 0 | I53: 0 | J53: 0 | K53: 0 | L53: 0 | M53: 0 | N53: 0 | P53: =P54+P76 -> 
A54: Net sales, ext | B54: CENTRALAM | C54: =SUM(C55:C75) -> 0 | D54: 0 | E54: 0 | F54: 0 | G54: 0 | H54: 0 | I54: 0 | J54: 0 | K54: 0 | L54: 0 | M54: 0 | N54: 0 | P54: =SUM(P55:P75) -> 
A55: Net sales, ext | B55: CU | P55: =C55*IS!#REF! ->  | Q55: =D55*IS!#REF! ->  | R55: =E55*IS!#REF! ->  | S55: =F55*IS!#REF! ->  | T55: =G55*IS!#REF! ->  | U55: =H55*IS!#REF! ->  | V55: =I55*IS!#REF! ->  | W55: =J55*IS!#REF! ->  | X55: =K55*IS!#REF! ->  | Y55: =L55*IS!#REF! ->  | Z55: =M55*IS!#REF! ->  | AA55: =N55*IS!#REF! -> 
A56: Net sales, ext | B56: PR | P56: =C56*IS!#REF! ->  | Q56: =D56*IS!#REF! ->  | R56: =E56*IS!#REF! ->  | S56: =F56*IS!#REF! ->  | T56: =G56*IS!#REF! ->  | U56: =H56*IS!#REF! ->  | V56: =I56*IS!#REF! ->  | W56: =J56*IS!#REF! ->  | X56: =K56*IS!#REF! ->  | Y56: =L56*IS!#REF! ->  | Z56: =M56*IS!#REF! ->  | AA56: =N56*IS!#REF! -> 
A57: Net sales, ext | B57: BM | P57: =C57*IS!#REF! ->  | Q57: =D57*IS!#REF! ->  | R57: =E57*IS!#REF! ->  | S57: =F57*IS!#REF! ->  | T57: =G57*IS!#REF! ->  | U57: =H57*IS!#REF! ->  | V57: =I57*IS!#REF! ->  | W57: =J57*IS!#REF! ->  | X57: =K57*IS!#REF! ->  | Y57: =L57*IS!#REF! ->  | Z57: =M57*IS!#REF! ->  | AA57: =N57*IS!#REF! -> 
A58: Net sales, ext | B58: CR | P58: =C58*IS!#REF! ->  | Q58: =D58*IS!#REF! ->  | R58: =E58*IS!#REF! ->  | S58: =F58*IS!#REF! ->  | T58: =G58*IS!#REF! ->  | U58: =H58*IS!#REF! ->  | V58: =I58*IS!#REF! ->  | W58: =J58*IS!#REF! ->  | X58: =K58*IS!#REF! ->  | Y58: =L58*IS!#REF! ->  | Z58: =M58*IS!#REF! ->  | AA58: =N58*IS!#REF! -> 
A59: Net sales, ext | B59: GT | P59: =C59*IS!#REF! ->  | Q59: =D59*IS!#REF! ->  | R59: =E59*IS!#REF! ->  | S59: =F59*IS!#REF! ->  | T59: =G59*IS!#REF! ->  | U59: =H59*IS!#REF! ->  | V59: =I59*IS!#REF! ->  | W59: =J59*IS!#REF! ->  | X59: =K59*IS!#REF! ->  | Y59: =L59*IS!#REF! ->  | Z59: =M59*IS!#REF! ->  | AA59: =N59*IS!#REF! -> 
A60: Net sales, ext | B60: AW | P60: =C60*IS!#REF! ->  | Q60: =D60*IS!#REF! ->  | R60: =E60*IS!#REF! ->  | S60: =F60*IS!#REF! ->  | T60: =G60*IS!#REF! ->  | U60: =H60*IS!#REF! ->  | V60: =I60*IS!#REF! ->  | W60: =J60*IS!#REF! ->  | X60: =K60*IS!#REF! ->  | Y60: =L60*IS!#REF! ->  | Z60: =M60*IS!#REF! ->  | AA60: =N60*IS!#REF! -> 
A61: Net sales, ext | B61: BB | P61: =C61*IS!#REF! ->  | Q61: =D61*IS!#REF! ->  | R61: =E61*IS!#REF! ->  | S61: =F61*IS!#REF! ->  | T61: =G61*IS!#REF! ->  | U61: =H61*IS!#REF! ->  | V61: =I61*IS!#REF! ->  | W61: =J61*IS!#REF! ->  | X61: =K61*IS!#REF! ->  | Y61: =L61*IS!#REF! ->  | Z61: =M61*IS!#REF! ->  | AA61: =N61*IS!#REF! -> 
A62: Net sales, ext | B62: HN | P62: =C62*IS!#REF! ->  | Q62: =D62*IS!#REF! ->  | R62: =E62*IS!#REF! ->  | S62: =F62*IS!#REF! ->  | T62: =G62*IS!#REF! ->  | U62: =H62*IS!#REF! ->  | V62: =I62*IS!#REF! ->  | W62: =J62*IS!#REF! ->  | X62: =K62*IS!#REF! ->  | Y62: =L62*IS!#REF! ->  | Z62: =M62*IS!#REF! ->  | AA62: =N62*IS!#REF! -> 
A63: Net sales, ext | B63: PA | P63: =C63*IS!#REF! ->  | Q63: =D63*IS!#REF! ->  | R63: =E63*IS!#REF! ->  | S63: =F63*IS!#REF! ->  | T63: =G63*IS!#REF! ->  | U63: =H63*IS!#REF! ->  | V63: =I63*IS!#REF! ->  | W63: =J63*IS!#REF! ->  | X63: =K63*IS!#REF! ->  | Y63: =L63*IS!#REF! ->  | Z63: =M63*IS!#REF! ->  | AA63: =N63*IS!#REF! -> 
A64: Net sales, ext | B64: TT | P64: =C64*IS!#REF! ->  | Q64: =D64*IS!#REF! ->  | R64: =E64*IS!#REF! ->  | S64: =F64*IS!#REF! ->  | T64: =G64*IS!#REF! ->  | U64: =H64*IS!#REF! ->  | V64: =I64*IS!#REF! ->  | W64: =J64*IS!#REF! ->  | X64: =K64*IS!#REF! ->  | Y64: =L64*IS!#REF! ->  | Z64: =M64*IS!#REF! ->  | AA64: =N64*IS!#REF! -> 
A65: Net sales, ext | B65: BS | P65: =C65*IS!#REF! ->  | Q65: =D65*IS!#REF! ->  | R65: =E65*IS!#REF! ->  | S65: =F65*IS!#REF! ->  | T65: =G65*IS!#REF! ->  | U65: =H65*IS!#REF! ->  | V65: =I65*IS!#REF! ->  | W65: =J65*IS!#REF! ->  | X65: =K65*IS!#REF! ->  | Y65: =L65*IS!#REF! ->  | Z65: =M65*IS!#REF! ->  | AA65: =N65*IS!#REF! -> 
A66: Net sales, ext | B66: DO | P66: =C66*IS!#REF! ->  | Q66: =D66*IS!#REF! ->  | R66: =E66*IS!#REF! ->  | S66: =F66*IS!#REF! ->  | T66: =G66*IS!#REF! ->  | U66: =H66*IS!#REF! ->  | V66: =I66*IS!#REF! ->  | W66: =J66*IS!#REF! ->  | X66: =K66*IS!#REF! ->  | Y66: =L66*IS!#REF! ->  | Z66: =M66*IS!#REF! ->  | AA66: =N66*IS!#REF! -> 
A67: Net sales, ext | B67: KY | P67: =C67*IS!#REF! ->  | Q67: =D67*IS!#REF! ->  | R67: =E67*IS!#REF! ->  | S67: =F67*IS!#REF! ->  | T67: =G67*IS!#REF! ->  | U67: =H67*IS!#REF! ->  | V67: =I67*IS!#REF! ->  | W67: =J67*IS!#REF! ->  | X67: =K67*IS!#REF! ->  | Y67: =L67*IS!#REF! ->  | Z67: =M67*IS!#REF! ->  | AA67: =N67*IS!#REF! -> 
A68: Net sales, ext | B68: JM | P68: =C68*IS!#REF! ->  | Q68: =D68*IS!#REF! ->  | R68: =E68*IS!#REF! ->  | S68: =F68*IS!#REF! ->  | T68: =G68*IS!#REF! ->  | U68: =H68*IS!#REF! ->  | V68: =I68*IS!#REF! ->  | W68: =J68*IS!#REF! ->  | X68: =K68*IS!#REF! ->  | Y68: =L68*IS!#REF! ->  | Z68: =M68*IS!#REF! ->  | AA68: =N68*IS!#REF! -> 
A69: Net sales, ext | B69: SV | P69: =C69*IS!#REF! ->  | Q69: =D69*IS!#REF! ->  | R69: =E69*IS!#REF! ->  | S69: =F69*IS!#REF! ->  | T69: =G69*IS!#REF! ->  | U69: =H69*IS!#REF! ->  | V69: =I69*IS!#REF! ->  | W69: =J69*IS!#REF! ->  | X69: =K69*IS!#REF! ->  | Y69: =L69*IS!#REF! ->  | Z69: =M69*IS!#REF! ->  | AA69: =N69*IS!#REF! -> 
A70: Net sales, ext | B70: LC | P70: =C70*IS!#REF! ->  | Q70: =D70*IS!#REF! ->  | R70: =E70*IS!#REF! ->  | S70: =F70*IS!#REF! ->  | T70: =G70*IS!#REF! ->  | U70: =H70*IS!#REF! ->  | V70: =I70*IS!#REF! ->  | W70: =J70*IS!#REF! ->  | X70: =K70*IS!#REF! ->  | Y70: =L70*IS!#REF! ->  | Z70: =M70*IS!#REF! ->  | AA70: =N70*IS!#REF! -> 
A71: Net sales, ext | B71: NI | P71: =C71*IS!#REF! ->  | Q71: =D71*IS!#REF! ->  | R71: =E71*IS!#REF! ->  | S71: =F71*IS!#REF! ->  | T71: =G71*IS!#REF! ->  | U71: =H71*IS!#REF! ->  | V71: =I71*IS!#REF! ->  | W71: =J71*IS!#REF! ->  | X71: =K71*IS!#REF! ->  | Y71: =L71*IS!#REF! ->  | Z71: =M71*IS!#REF! ->  | AA71: =N71*IS!#REF! -> 
A72: Net sales, ext | B72: HT | P72: =C72*IS!#REF! ->  | Q72: =D72*IS!#REF! ->  | R72: =E72*IS!#REF! ->  | S72: =F72*IS!#REF! ->  | T72: =G72*IS!#REF! ->  | U72: =H72*IS!#REF! ->  | V72: =I72*IS!#REF! ->  | W72: =J72*IS!#REF! ->  | X72: =K72*IS!#REF! ->  | Y72: =L72*IS!#REF! ->  | Z72: =M72*IS!#REF! ->  | AA72: =N72*IS!#REF! -> 
A73: Net sales, ext | B73: TC | P73: =C73*IS!#REF! ->  | Q73: =D73*IS!#REF! ->  | R73: =E73*IS!#REF! ->  | S73: =F73*IS!#REF! ->  | T73: =G73*IS!#REF! ->  | U73: =H73*IS!#REF! ->  | V73: =I73*IS!#REF! ->  | W73: =J73*IS!#REF! ->  | X73: =K73*IS!#REF! ->  | Y73: =L73*IS!#REF! ->  | Z73: =M73*IS!#REF! ->  | AA73: =N73*IS!#REF! -> 
A74: Net sales, ext | B74: AN | P74: =C74*IS!#REF! ->  | Q74: =D74*IS!#REF! ->  | R74: =E74*IS!#REF! ->  | S74: =F74*IS!#REF! ->  | T74: =G74*IS!#REF! ->  | U74: =H74*IS!#REF! ->  | V74: =I74*IS!#REF! ->  | W74: =J74*IS!#REF! ->  | X74: =K74*IS!#REF! ->  | Y74: =L74*IS!#REF! ->  | Z74: =M74*IS!#REF! ->  | AA74: =N74*IS!#REF! -> 
A75: Net sales, ext | B75: OTHERCENTRALAM | P75: =C75*IS!#REF! ->  | Q75: =D75*IS!#REF! ->  | R75: =E75*IS!#REF! ->  | S75: =F75*IS!#REF! ->  | T75: =G75*IS!#REF! ->  | U75: =H75*IS!#REF! ->  | V75: =I75*IS!#REF! ->  | W75: =J75*IS!#REF! ->  | X75: =K75*IS!#REF! ->  | Y75: =L75*IS!#REF! ->  | Z75: =M75*IS!#REF! ->  | AA75: =N75*IS!#REF! -> 
A76: Net sales, ext | B76: SOUTHAM | C76: =SUM(C77:C80) -> 0 | D76: 0 | E76: 0 | F76: 0 | G76: 0 | H76: 0 | I76: 0 | J76: 0 | K76: 0 | L76: 0 | M76: 0 | N76: 0 | P76: =SUM(P77:P80) -> 
A77: Net sales, ext | B77: BR | P77: =C77*IS!#REF! ->  | Q77: =D77*IS!#REF! ->  | R77: =E77*IS!#REF! ->  | S77: =F77*IS!#REF! ->  | T77: =G77*IS!#REF! ->  | U77: =H77*IS!#REF! ->  | V77: =I77*IS!#REF! ->  | W77: =J77*IS!#REF! ->  | X77: =K77*IS!#REF! ->  | Y77: =L77*IS!#REF! ->  | Z77: =M77*IS!#REF! ->  | AA77: =N77*IS!#REF! -> 
A78: Net sales, ext | B78: CL | P78: =C78*IS!#REF! ->  | Q78: =D78*IS!#REF! ->  | R78: =E78*IS!#REF! ->  | S78: =F78*IS!#REF! ->  | T78: =G78*IS!#REF! ->  | U78: =H78*IS!#REF! ->  | V78: =I78*IS!#REF! ->  | W78: =J78*IS!#REF! ->  | X78: =K78*IS!#REF! ->  | Y78: =L78*IS!#REF! ->  | Z78: =M78*IS!#REF! ->  | AA78: =N78*IS!#REF! -> 
A79: Net sales, ext | B79: CO | P79: =C79*IS!#REF! ->  | Q79: =D79*IS!#REF! ->  | R79: =E79*IS!#REF! ->  | S79: =F79*IS!#REF! ->  | T79: =G79*IS!#REF! ->  | U79: =H79*IS!#REF! ->  | V79: =I79*IS!#REF! ->  | W79: =J79*IS!#REF! ->  | X79: =K79*IS!#REF! ->  | Y79: =L79*IS!#REF! ->  | Z79: =M79*IS!#REF! ->  | AA79: =N79*IS!#REF! -> 
A80: Net sales, ext | B80: OTHSOUTHAMERICA | C80: =SUM(C81:C88) -> 0 | D80: 0 | E80: 0 | F80: 0 | G80: 0 | H80: 0 | I80: 0 | J80: 0 | K80: 0 | L80: 0 | M80: 0 | N80: 0 | P80: =SUM(P81:P88) -> 
A81: Net sales, ext | B81: AR | P81: =C81*IS!#REF! ->  | Q81: =D81*IS!#REF! ->  | R81: =E81*IS!#REF! ->  | S81: =F81*IS!#REF! ->  | T81: =G81*IS!#REF! ->  | U81: =H81*IS!#REF! ->  | V81: =I81*IS!#REF! ->  | W81: =J81*IS!#REF! ->  | X81: =K81*IS!#REF! ->  | Y81: =L81*IS!#REF! ->  | Z81: =M81*IS!#REF! ->  | AA81: =N81*IS!#REF! -> 
A82: Net sales, ext | B82: EC | P82: =C82*IS!#REF! ->  | Q82: =D82*IS!#REF! ->  | R82: =E82*IS!#REF! ->  | S82: =F82*IS!#REF! ->  | T82: =G82*IS!#REF! ->  | U82: =H82*IS!#REF! ->  | V82: =I82*IS!#REF! ->  | W82: =J82*IS!#REF! ->  | X82: =K82*IS!#REF! ->  | Y82: =L82*IS!#REF! ->  | Z82: =M82*IS!#REF! ->  | AA82: =N82*IS!#REF! -> 
A83: Net sales, ext | B83: PE | P83: =C83*IS!#REF! ->  | Q83: =D83*IS!#REF! ->  | R83: =E83*IS!#REF! ->  | S83: =F83*IS!#REF! ->  | T83: =G83*IS!#REF! ->  | U83: =H83*IS!#REF! ->  | V83: =I83*IS!#REF! ->  | W83: =J83*IS!#REF! ->  | X83: =K83*IS!#REF! ->  | Y83: =L83*IS!#REF! ->  | Z83: =M83*IS!#REF! ->  | AA83: =N83*IS!#REF! -> 
A84: Net sales, ext | B84: VE | P84: =C84*IS!#REF! ->  | Q84: =D84*IS!#REF! ->  | R84: =E84*IS!#REF! ->  | S84: =F84*IS!#REF! ->  | T84: =G84*IS!#REF! ->  | U84: =H84*IS!#REF! ->  | V84: =I84*IS!#REF! ->  | W84: =J84*IS!#REF! ->  | X84: =K84*IS!#REF! ->  | Y84: =L84*IS!#REF! ->  | Z84: =M84*IS!#REF! ->  | AA84: =N84*IS!#REF! -> 
A85: Net sales, ext | B85: UY | P85: =C85*IS!#REF! ->  | Q85: =D85*IS!#REF! ->  | R85: =E85*IS!#REF! ->  | S85: =F85*IS!#REF! ->  | T85: =G85*IS!#REF! ->  | U85: =H85*IS!#REF! ->  | V85: =I85*IS!#REF! ->  | W85: =J85*IS!#REF! ->  | X85: =K85*IS!#REF! ->  | Y85: =L85*IS!#REF! ->  | Z85: =M85*IS!#REF! ->  | AA85: =N85*IS!#REF! -> 
A86: Net sales, ext | B86: SR | P86: =C86*IS!#REF! ->  | Q86: =D86*IS!#REF! ->  | R86: =E86*IS!#REF! ->  | S86: =F86*IS!#REF! ->  | T86: =G86*IS!#REF! ->  | U86: =H86*IS!#REF! ->  | V86: =I86*IS!#REF! ->  | W86: =J86*IS!#REF! ->  | X86: =K86*IS!#REF! ->  | Y86: =L86*IS!#REF! ->  | Z86: =M86*IS!#REF! ->  | AA86: =N86*IS!#REF! -> 
A87: Net sales, ext | B87: BO | P87: =C87*IS!#REF! ->  | Q87: =D87*IS!#REF! ->  | R87: =E87*IS!#REF! ->  | S87: =F87*IS!#REF! ->  | T87: =G87*IS!#REF! ->  | U87: =H87*IS!#REF! ->  | V87: =I87*IS!#REF! ->  | W87: =J87*IS!#REF! ->  | X87: =K87*IS!#REF! ->  | Y87: =L87*IS!#REF! ->  | Z87: =M87*IS!#REF! ->  | AA87: =N87*IS!#REF! -> 
A88: Net sales, ext | B88: OTHERSOUTHAM | P88: =C88*IS!#REF! ->  | Q88: =D88*IS!#REF! ->  | R88: =E88*IS!#REF! ->  | S88: =F88*IS!#REF! ->  | T88: =G88*IS!#REF! ->  | U88: =H88*IS!#REF! ->  | V88: =I88*IS!#REF! ->  | W88: =J88*IS!#REF! ->  | X88: =K88*IS!#REF! ->  | Y88: =L88*IS!#REF! ->  | Z88: =M88*IS!#REF! ->  | AA88: =N88*IS!#REF! -> 
A89: Net sales, ext | B89: AFRICA | C89: =SUM(C90:C92) -> 0 | D89: 0 | E89: 0 | F89: 0 | G89: 0 | H89: 0 | I89: 0 | J89: 0 | K89: 0 | L89: 0 | M89: 0 | N89: 0 | P89: =SUM(P90:P92) -> 
A90: Net sales, ext | B90: KE | P90: =C90*IS!#REF! ->  | Q90: =D90*IS!#REF! ->  | R90: =E90*IS!#REF! ->  | S90: =F90*IS!#REF! ->  | T90: =G90*IS!#REF! ->  | U90: =H90*IS!#REF! ->  | V90: =I90*IS!#REF! ->  | W90: =J90*IS!#REF! ->  | X90: =K90*IS!#REF! ->  | Y90: =L90*IS!#REF! ->  | Z90: =M90*IS!#REF! ->  | AA90: =N90*IS!#REF! -> 
A91: Net sales, ext | B91: ZA | P91: =C91*IS!#REF! ->  | Q91: =D91*IS!#REF! ->  | R91: =E91*IS!#REF! ->  | S91: =F91*IS!#REF! ->  | T91: =G91*IS!#REF! ->  | U91: =H91*IS!#REF! ->  | V91: =I91*IS!#REF! ->  | W91: =J91*IS!#REF! ->  | X91: =K91*IS!#REF! ->  | Y91: =L91*IS!#REF! ->  | Z91: =M91*IS!#REF! ->  | AA91: =N91*IS!#REF! -> 
A92: Net sales, ext | B92: OTHAFRICA | C92: =SUM(C93:C141) -> 0 | D92: 0 | E92: 0 | F92: 0 | G92: 0 | H92: 0 | I92: 0 | J92: 0 | K92: 0 | L92: 0 | M92: 0 | N92: 0 | P92: =SUM(P93:P141) -> 
A93: Net sales, ext | B93: DZ | P93: =C93*IS!#REF! ->  | Q93: =D93*IS!#REF! ->  | R93: =E93*IS!#REF! ->  | S93: =F93*IS!#REF! ->  | T93: =G93*IS!#REF! ->  | U93: =H93*IS!#REF! ->  | V93: =I93*IS!#REF! ->  | W93: =J93*IS!#REF! ->  | X93: =K93*IS!#REF! ->  | Y93: =L93*IS!#REF! ->  | Z93: =M93*IS!#REF! ->  | AA93: =N93*IS!#REF! -> 
A94: Net sales, ext | B94: EG | P94: =C94*IS!#REF! ->  | Q94: =D94*IS!#REF! ->  | R94: =E94*IS!#REF! ->  | S94: =F94*IS!#REF! ->  | T94: =G94*IS!#REF! ->  | U94: =H94*IS!#REF! ->  | V94: =I94*IS!#REF! ->  | W94: =J94*IS!#REF! ->  | X94: =K94*IS!#REF! ->  | Y94: =L94*IS!#REF! ->  | Z94: =M94*IS!#REF! ->  | AA94: =N94*IS!#REF! -> 
A95: Net sales, ext | B95: GH | P95: =C95*IS!#REF! ->  | Q95: =D95*IS!#REF! ->  | R95: =E95*IS!#REF! ->  | S95: =F95*IS!#REF! ->  | T95: =G95*IS!#REF! ->  | U95: =H95*IS!#REF! ->  | V95: =I95*IS!#REF! ->  | W95: =J95*IS!#REF! ->  | X95: =K95*IS!#REF! ->  | Y95: =L95*IS!#REF! ->  | Z95: =M95*IS!#REF! ->  | AA95: =N95*IS!#REF! -> 
A96: Net sales, ext | B96: LY | P96: =C96*IS!#REF! ->  | Q96: =D96*IS!#REF! ->  | R96: =E96*IS!#REF! ->  | S96: =F96*IS!#REF! ->  | T96: =G96*IS!#REF! ->  | U96: =H96*IS!#REF! ->  | V96: =I96*IS!#REF! ->  | W96: =J96*IS!#REF! ->  | X96: =K96*IS!#REF! ->  | Y96: =L96*IS!#REF! ->  | Z96: =M96*IS!#REF! ->  | AA96: =N96*IS!#REF! -> 
A97: Net sales, ext | B97: MU | P97: =C97*IS!#REF! ->  | Q97: =D97*IS!#REF! ->  | R97: =E97*IS!#REF! ->  | S97: =F97*IS!#REF! ->  | T97: =G97*IS!#REF! ->  | U97: =H97*IS!#REF! ->  | V97: =I97*IS!#REF! ->  | W97: =J97*IS!#REF! ->  | X97: =K97*IS!#REF! ->  | Y97: =L97*IS!#REF! ->  | Z97: =M97*IS!#REF! ->  | AA97: =N97*IS!#REF! -> 
A98: Net sales, ext | B98: MA | P98: =C98*IS!#REF! ->  | Q98: =D98*IS!#REF! ->  | R98: =E98*IS!#REF! ->  | S98: =F98*IS!#REF! ->  | T98: =G98*IS!#REF! ->  | U98: =H98*IS!#REF! ->  | V98: =I98*IS!#REF! ->  | W98: =J98*IS!#REF! ->  | X98: =K98*IS!#REF! ->  | Y98: =L98*IS!#REF! ->  | Z98: =M98*IS!#REF! ->  | AA98: =N98*IS!#REF! -> 
A99: Net sales, ext | B99: NG | P99: =C99*IS!#REF! ->  | Q99: =D99*IS!#REF! ->  | R99: =E99*IS!#REF! ->  | S99: =F99*IS!#REF! ->  | T99: =G99*IS!#REF! ->  | U99: =H99*IS!#REF! ->  | V99: =I99*IS!#REF! ->  | W99: =J99*IS!#REF! ->  | X99: =K99*IS!#REF! ->  | Y99: =L99*IS!#REF! ->  | Z99: =M99*IS!#REF! ->  | AA99: =N99*IS!#REF! -> 
A100: Net sales, ext | B100: SD | P100: =C100*IS!#REF! ->  | Q100: =D100*IS!#REF! ->  | R100: =E100*IS!#REF! ->  | S100: =F100*IS!#REF! ->  | T100: =G100*IS!#REF! ->  | U100: =H100*IS!#REF! ->  | V100: =I100*IS!#REF! ->  | W100: =J100*IS!#REF! ->  | X100: =K100*IS!#REF! ->  | Y100: =L100*IS!#REF! ->  | Z100: =M100*IS!#REF! ->  | AA100: =N100*IS!#REF! -> 
A101: Net sales, ext | B101: TZ | P101: =C101*IS!#REF! ->  | Q101: =D101*IS!#REF! ->  | R101: =E101*IS!#REF! ->  | S101: =F101*IS!#REF! ->  | T101: =G101*IS!#REF! ->  | U101: =H101*IS!#REF! ->  | V101: =I101*IS!#REF! ->  | W101: =J101*IS!#REF! ->  | X101: =K101*IS!#REF! ->  | Y101: =L101*IS!#REF! ->  | Z101: =M101*IS!#REF! ->  | AA101: =N101*IS!#REF! -> 
A102: Net sales, ext | B102: TN | P102: =C102*IS!#REF! ->  | Q102: =D102*IS!#REF! ->  | R102: =E102*IS!#REF! ->  | S102: =F102*IS!#REF! ->  | T102: =G102*IS!#REF! ->  | U102: =H102*IS!#REF! ->  | V102: =I102*IS!#REF! ->  | W102: =J102*IS!#REF! ->  | X102: =K102*IS!#REF! ->  | Y102: =L102*IS!#REF! ->  | Z102: =M102*IS!#REF! ->  | AA102: =N102*IS!#REF! -> 
A103: Net sales, ext | B103: ZW | P103: =C103*IS!#REF! ->  | Q103: =D103*IS!#REF! ->  | R103: =E103*IS!#REF! ->  | S103: =F103*IS!#REF! ->  | T103: =G103*IS!#REF! ->  | U103: =H103*IS!#REF! ->  | V103: =I103*IS!#REF! ->  | W103: =J103*IS!#REF! ->  | X103: =K103*IS!#REF! ->  | Y103: =L103*IS!#REF! ->  | Z103: =M103*IS!#REF! ->  | AA103: =N103*IS!#REF! -> 
A104: Net sales, ext | B104: CM | P104: =C104*IS!#REF! ->  | Q104: =D104*IS!#REF! ->  | R104: =E104*IS!#REF! ->  | S104: =F104*IS!#REF! ->  | T104: =G104*IS!#REF! ->  | U104: =H104*IS!#REF! ->  | V104: =I104*IS!#REF! ->  | W104: =J104*IS!#REF! ->  | X104: =K104*IS!#REF! ->  | Y104: =L104*IS!#REF! ->  | Z104: =M104*IS!#REF! ->  | AA104: =N104*IS!#REF! -> 
A105: Net sales, ext | B105: AD | P105: =C105*IS!#REF! ->  | Q105: =D105*IS!#REF! ->  | R105: =E105*IS!#REF! ->  | S105: =F105*IS!#REF! ->  | T105: =G105*IS!#REF! ->  | U105: =H105*IS!#REF! ->  | V105: =I105*IS!#REF! ->  | W105: =J105*IS!#REF! ->  | X105: =K105*IS!#REF! ->  | Y105: =L105*IS!#REF! ->  | Z105: =M105*IS!#REF! ->  | AA105: =N105*IS!#REF! -> 
A106: Net sales, ext | B106: ZM | P106: =C106*IS!#REF! ->  | Q106: =D106*IS!#REF! ->  | R106: =E106*IS!#REF! ->  | S106: =F106*IS!#REF! ->  | T106: =G106*IS!#REF! ->  | U106: =H106*IS!#REF! ->  | V106: =I106*IS!#REF! ->  | W106: =J106*IS!#REF! ->  | X106: =K106*IS!#REF! ->  | Y106: =L106*IS!#REF! ->  | Z106: =M106*IS!#REF! ->  | AA106: =N106*IS!#REF! -> 
A107: Net sales, ext | B107: NA | P107: =C107*IS!#REF! ->  | Q107: =D107*IS!#REF! ->  | R107: =E107*IS!#REF! ->  | S107: =F107*IS!#REF! ->  | T107: =G107*IS!#REF! ->  | U107: =H107*IS!#REF! ->  | V107: =I107*IS!#REF! ->  | W107: =J107*IS!#REF! ->  | X107: =K107*IS!#REF! ->  | Y107: =L107*IS!#REF! ->  | Z107: =M107*IS!#REF! ->  | AA107: =N107*IS!#REF! -> 
A108: Net sales, ext | B108: BW | P108: =C108*IS!#REF! ->  | Q108: =D108*IS!#REF! ->  | R108: =E108*IS!#REF! ->  | S108: =F108*IS!#REF! ->  | T108: =G108*IS!#REF! ->  | U108: =H108*IS!#REF! ->  | V108: =I108*IS!#REF! ->  | W108: =J108*IS!#REF! ->  | X108: =K108*IS!#REF! ->  | Y108: =L108*IS!#REF! ->  | Z108: =M108*IS!#REF! ->  | AA108: =N108*IS!#REF! -> 
A109: Net sales, ext | B109: MZ | P109: =C109*IS!#REF! ->  | Q109: =D109*IS!#REF! ->  | R109: =E109*IS!#REF! ->  | S109: =F109*IS!#REF! ->  | T109: =G109*IS!#REF! ->  | U109: =H109*IS!#REF! ->  | V109: =I109*IS!#REF! ->  | W109: =J109*IS!#REF! ->  | X109: =K109*IS!#REF! ->  | Y109: =L109*IS!#REF! ->  | Z109: =M109*IS!#REF! ->  | AA109: =N109*IS!#REF! -> 
A110: Net sales, ext | B110: MG | P110: =C110*IS!#REF! ->  | Q110: =D110*IS!#REF! ->  | R110: =E110*IS!#REF! ->  | S110: =F110*IS!#REF! ->  | T110: =G110*IS!#REF! ->  | U110: =H110*IS!#REF! ->  | V110: =I110*IS!#REF! ->  | W110: =J110*IS!#REF! ->  | X110: =K110*IS!#REF! ->  | Y110: =L110*IS!#REF! ->  | Z110: =M110*IS!#REF! ->  | AA110: =N110*IS!#REF! -> 
A111: Net sales, ext | B111: SN | P111: =C111*IS!#REF! ->  | Q111: =D111*IS!#REF! ->  | R111: =E111*IS!#REF! ->  | S111: =F111*IS!#REF! ->  | T111: =G111*IS!#REF! ->  | U111: =H111*IS!#REF! ->  | V111: =I111*IS!#REF! ->  | W111: =J111*IS!#REF! ->  | X111: =K111*IS!#REF! ->  | Y111: =L111*IS!#REF! ->  | Z111: =M111*IS!#REF! ->  | AA111: =N111*IS!#REF! -> 
A112: Net sales, ext | B112: GA | P112: =C112*IS!#REF! ->  | Q112: =D112*IS!#REF! ->  | R112: =E112*IS!#REF! ->  | S112: =F112*IS!#REF! ->  | T112: =G112*IS!#REF! ->  | U112: =H112*IS!#REF! ->  | V112: =I112*IS!#REF! ->  | W112: =J112*IS!#REF! ->  | X112: =K112*IS!#REF! ->  | Y112: =L112*IS!#REF! ->  | Z112: =M112*IS!#REF! ->  | AA112: =N112*IS!#REF! -> 
A113: Net sales, ext | B113: BJ | P113: =C113*IS!#REF! ->  | Q113: =D113*IS!#REF! ->  | R113: =E113*IS!#REF! ->  | S113: =F113*IS!#REF! ->  | T113: =G113*IS!#REF! ->  | U113: =H113*IS!#REF! ->  | V113: =I113*IS!#REF! ->  | W113: =J113*IS!#REF! ->  | X113: =K113*IS!#REF! ->  | Y113: =L113*IS!#REF! ->  | Z113: =M113*IS!#REF! ->  | AA113: =N113*IS!#REF! -> 
A114: Net sales, ext | B114: BF | P114: =C114*IS!#REF! ->  | Q114: =D114*IS!#REF! ->  | R114: =E114*IS!#REF! ->  | S114: =F114*IS!#REF! ->  | T114: =G114*IS!#REF! ->  | U114: =H114*IS!#REF! ->  | V114: =I114*IS!#REF! ->  | W114: =J114*IS!#REF! ->  | X114: =K114*IS!#REF! ->  | Y114: =L114*IS!#REF! ->  | Z114: =M114*IS!#REF! ->  | AA114: =N114*IS!#REF! -> 
A115: Net sales, ext | B115: CI | P115: =C115*IS!#REF! ->  | Q115: =D115*IS!#REF! ->  | R115: =E115*IS!#REF! ->  | S115: =F115*IS!#REF! ->  | T115: =G115*IS!#REF! ->  | U115: =H115*IS!#REF! ->  | V115: =I115*IS!#REF! ->  | W115: =J115*IS!#REF! ->  | X115: =K115*IS!#REF! ->  | Y115: =L115*IS!#REF! ->  | Z115: =M115*IS!#REF! ->  | AA115: =N115*IS!#REF! -> 
A116: Net sales, ext | B116: GN | P116: =C116*IS!#REF! ->  | Q116: =D116*IS!#REF! ->  | R116: =E116*IS!#REF! ->  | S116: =F116*IS!#REF! ->  | T116: =G116*IS!#REF! ->  | U116: =H116*IS!#REF! ->  | V116: =I116*IS!#REF! ->  | W116: =J116*IS!#REF! ->  | X116: =K116*IS!#REF! ->  | Y116: =L116*IS!#REF! ->  | Z116: =M116*IS!#REF! ->  | AA116: =N116*IS!#REF! -> 
A117: Net sales, ext | B117: GQ | P117: =C117*IS!#REF! ->  | Q117: =D117*IS!#REF! ->  | R117: =E117*IS!#REF! ->  | S117: =F117*IS!#REF! ->  | T117: =G117*IS!#REF! ->  | U117: =H117*IS!#REF! ->  | V117: =I117*IS!#REF! ->  | W117: =J117*IS!#REF! ->  | X117: =K117*IS!#REF! ->  | Y117: =L117*IS!#REF! ->  | Z117: =M117*IS!#REF! ->  | AA117: =N117*IS!#REF! -> 
A118: Net sales, ext | B118: GW | P118: =C118*IS!#REF! ->  | Q118: =D118*IS!#REF! ->  | R118: =E118*IS!#REF! ->  | S118: =F118*IS!#REF! ->  | T118: =G118*IS!#REF! ->  | U118: =H118*IS!#REF! ->  | V118: =I118*IS!#REF! ->  | W118: =J118*IS!#REF! ->  | X118: =K118*IS!#REF! ->  | Y118: =L118*IS!#REF! ->  | Z118: =M118*IS!#REF! ->  | AA118: =N118*IS!#REF! -> 
A119: Net sales, ext | B119: SL | P119: =C119*IS!#REF! ->  | Q119: =D119*IS!#REF! ->  | R119: =E119*IS!#REF! ->  | S119: =F119*IS!#REF! ->  | T119: =G119*IS!#REF! ->  | U119: =H119*IS!#REF! ->  | V119: =I119*IS!#REF! ->  | W119: =J119*IS!#REF! ->  | X119: =K119*IS!#REF! ->  | Y119: =L119*IS!#REF! ->  | Z119: =M119*IS!#REF! ->  | AA119: =N119*IS!#REF! -> 
A120: Net sales, ext | B120: ML | P120: =C120*IS!#REF! ->  | Q120: =D120*IS!#REF! ->  | R120: =E120*IS!#REF! ->  | S120: =F120*IS!#REF! ->  | T120: =G120*IS!#REF! ->  | U120: =H120*IS!#REF! ->  | V120: =I120*IS!#REF! ->  | W120: =J120*IS!#REF! ->  | X120: =K120*IS!#REF! ->  | Y120: =L120*IS!#REF! ->  | Z120: =M120*IS!#REF! ->  | AA120: =N120*IS!#REF! -> 
A121: Net sales, ext | B121: MR | P121: =C121*IS!#REF! ->  | Q121: =D121*IS!#REF! ->  | R121: =E121*IS!#REF! ->  | S121: =F121*IS!#REF! ->  | T121: =G121*IS!#REF! ->  | U121: =H121*IS!#REF! ->  | V121: =I121*IS!#REF! ->  | W121: =J121*IS!#REF! ->  | X121: =K121*IS!#REF! ->  | Y121: =L121*IS!#REF! ->  | Z121: =M121*IS!#REF! ->  | AA121: =N121*IS!#REF! -> 
A122: Net sales, ext | B122: CF | P122: =C122*IS!#REF! ->  | Q122: =D122*IS!#REF! ->  | R122: =E122*IS!#REF! ->  | S122: =F122*IS!#REF! ->  | T122: =G122*IS!#REF! ->  | U122: =H122*IS!#REF! ->  | V122: =I122*IS!#REF! ->  | W122: =J122*IS!#REF! ->  | X122: =K122*IS!#REF! ->  | Y122: =L122*IS!#REF! ->  | Z122: =M122*IS!#REF! ->  | AA122: =N122*IS!#REF! -> 
A123: Net sales, ext | B123: TD | P123: =C123*IS!#REF! ->  | Q123: =D123*IS!#REF! ->  | R123: =E123*IS!#REF! ->  | S123: =F123*IS!#REF! ->  | T123: =G123*IS!#REF! ->  | U123: =H123*IS!#REF! ->  | V123: =I123*IS!#REF! ->  | W123: =J123*IS!#REF! ->  | X123: =K123*IS!#REF! ->  | Y123: =L123*IS!#REF! ->  | Z123: =M123*IS!#REF! ->  | AA123: =N123*IS!#REF! -> 
A124: Net sales, ext | B124: TG | P124: =C124*IS!#REF! ->  | Q124: =D124*IS!#REF! ->  | R124: =E124*IS!#REF! ->  | S124: =F124*IS!#REF! ->  | T124: =G124*IS!#REF! ->  | U124: =H124*IS!#REF! ->  | V124: =I124*IS!#REF! ->  | W124: =J124*IS!#REF! ->  | X124: =K124*IS!#REF! ->  | Y124: =L124*IS!#REF! ->  | Z124: =M124*IS!#REF! ->  | AA124: =N124*IS!#REF! -> 
A125: Net sales, ext | B125: NE | P125: =C125*IS!#REF! ->  | Q125: =D125*IS!#REF! ->  | R125: =E125*IS!#REF! ->  | S125: =F125*IS!#REF! ->  | T125: =G125*IS!#REF! ->  | U125: =H125*IS!#REF! ->  | V125: =I125*IS!#REF! ->  | W125: =J125*IS!#REF! ->  | X125: =K125*IS!#REF! ->  | Y125: =L125*IS!#REF! ->  | Z125: =M125*IS!#REF! ->  | AA125: =N125*IS!#REF! -> 
A126: Net sales, ext | B126: GM | P126: =C126*IS!#REF! ->  | Q126: =D126*IS!#REF! ->  | R126: =E126*IS!#REF! ->  | S126: =F126*IS!#REF! ->  | T126: =G126*IS!#REF! ->  | U126: =H126*IS!#REF! ->  | V126: =I126*IS!#REF! ->  | W126: =J126*IS!#REF! ->  | X126: =K126*IS!#REF! ->  | Y126: =L126*IS!#REF! ->  | Z126: =M126*IS!#REF! ->  | AA126: =N126*IS!#REF! -> 
A127: Net sales, ext | B127: LR | P127: =C127*IS!#REF! ->  | Q127: =D127*IS!#REF! ->  | R127: =E127*IS!#REF! ->  | S127: =F127*IS!#REF! ->  | T127: =G127*IS!#REF! ->  | U127: =H127*IS!#REF! ->  | V127: =I127*IS!#REF! ->  | W127: =J127*IS!#REF! ->  | X127: =K127*IS!#REF! ->  | Y127: =L127*IS!#REF! ->  | Z127: =M127*IS!#REF! ->  | AA127: =N127*IS!#REF! -> 
A128: Net sales, ext | B128: UG | P128: =C128*IS!#REF! ->  | Q128: =D128*IS!#REF! ->  | R128: =E128*IS!#REF! ->  | S128: =F128*IS!#REF! ->  | T128: =G128*IS!#REF! ->  | U128: =H128*IS!#REF! ->  | V128: =I128*IS!#REF! ->  | W128: =J128*IS!#REF! ->  | X128: =K128*IS!#REF! ->  | Y128: =L128*IS!#REF! ->  | Z128: =M128*IS!#REF! ->  | AA128: =N128*IS!#REF! -> 
A129: Net sales, ext | B129: ET | P129: =C129*IS!#REF! ->  | Q129: =D129*IS!#REF! ->  | R129: =E129*IS!#REF! ->  | S129: =F129*IS!#REF! ->  | T129: =G129*IS!#REF! ->  | U129: =H129*IS!#REF! ->  | V129: =I129*IS!#REF! ->  | W129: =J129*IS!#REF! ->  | X129: =K129*IS!#REF! ->  | Y129: =L129*IS!#REF! ->  | Z129: =M129*IS!#REF! ->  | AA129: =N129*IS!#REF! -> 
A130: Net sales, ext | B130: RW | P130: =C130*IS!#REF! ->  | Q130: =D130*IS!#REF! ->  | R130: =E130*IS!#REF! ->  | S130: =F130*IS!#REF! ->  | T130: =G130*IS!#REF! ->  | U130: =H130*IS!#REF! ->  | V130: =I130*IS!#REF! ->  | W130: =J130*IS!#REF! ->  | X130: =K130*IS!#REF! ->  | Y130: =L130*IS!#REF! ->  | Z130: =M130*IS!#REF! ->  | AA130: =N130*IS!#REF! -> 
A131: Net sales, ext | B131: BI | P131: =C131*IS!#REF! ->  | Q131: =D131*IS!#REF! ->  | R131: =E131*IS!#REF! ->  | S131: =F131*IS!#REF! ->  | T131: =G131*IS!#REF! ->  | U131: =H131*IS!#REF! ->  | V131: =I131*IS!#REF! ->  | W131: =J131*IS!#REF! ->  | X131: =K131*IS!#REF! ->  | Y131: =L131*IS!#REF! ->  | Z131: =M131*IS!#REF! ->  | AA131: =N131*IS!#REF! -> 
A132: Net sales, ext | B132: DJ | P132: =C132*IS!#REF! ->  | Q132: =D132*IS!#REF! ->  | R132: =E132*IS!#REF! ->  | S132: =F132*IS!#REF! ->  | T132: =G132*IS!#REF! ->  | U132: =H132*IS!#REF! ->  | V132: =I132*IS!#REF! ->  | W132: =J132*IS!#REF! ->  | X132: =K132*IS!#REF! ->  | Y132: =L132*IS!#REF! ->  | Z132: =M132*IS!#REF! ->  | AA132: =N132*IS!#REF! -> 
A133: Net sales, ext | B133: ER | P133: =C133*IS!#REF! ->  | Q133: =D133*IS!#REF! ->  | R133: =E133*IS!#REF! ->  | S133: =F133*IS!#REF! ->  | T133: =G133*IS!#REF! ->  | U133: =H133*IS!#REF! ->  | V133: =I133*IS!#REF! ->  | W133: =J133*IS!#REF! ->  | X133: =K133*IS!#REF! ->  | Y133: =L133*IS!#REF! ->  | Z133: =M133*IS!#REF! ->  | AA133: =N133*IS!#REF! -> 
A134: Net sales, ext | B134: SO | P134: =C134*IS!#REF! ->  | Q134: =D134*IS!#REF! ->  | R134: =E134*IS!#REF! ->  | S134: =F134*IS!#REF! ->  | T134: =G134*IS!#REF! ->  | U134: =H134*IS!#REF! ->  | V134: =I134*IS!#REF! ->  | W134: =J134*IS!#REF! ->  | X134: =K134*IS!#REF! ->  | Y134: =L134*IS!#REF! ->  | Z134: =M134*IS!#REF! ->  | AA134: =N134*IS!#REF! -> 
A135: Net sales, ext | B135: CD | P135: =C135*IS!#REF! ->  | Q135: =D135*IS!#REF! ->  | R135: =E135*IS!#REF! ->  | S135: =F135*IS!#REF! ->  | T135: =G135*IS!#REF! ->  | U135: =H135*IS!#REF! ->  | V135: =I135*IS!#REF! ->  | W135: =J135*IS!#REF! ->  | X135: =K135*IS!#REF! ->  | Y135: =L135*IS!#REF! ->  | Z135: =M135*IS!#REF! ->  | AA135: =N135*IS!#REF! -> 
A136: Net sales, ext | B136: SZ | P136: =C136*IS!#REF! ->  | Q136: =D136*IS!#REF! ->  | R136: =E136*IS!#REF! ->  | S136: =F136*IS!#REF! ->  | T136: =G136*IS!#REF! ->  | U136: =H136*IS!#REF! ->  | V136: =I136*IS!#REF! ->  | W136: =J136*IS!#REF! ->  | X136: =K136*IS!#REF! ->  | Y136: =L136*IS!#REF! ->  | Z136: =M136*IS!#REF! ->  | AA136: =N136*IS!#REF! -> 
A137: Net sales, ext | B137: LS | P137: =C137*IS!#REF! ->  | Q137: =D137*IS!#REF! ->  | R137: =E137*IS!#REF! ->  | S137: =F137*IS!#REF! ->  | T137: =G137*IS!#REF! ->  | U137: =H137*IS!#REF! ->  | V137: =I137*IS!#REF! ->  | W137: =J137*IS!#REF! ->  | X137: =K137*IS!#REF! ->  | Y137: =L137*IS!#REF! ->  | Z137: =M137*IS!#REF! ->  | AA137: =N137*IS!#REF! -> 
A138: Net sales, ext | B138: CG | P138: =C138*IS!#REF! ->  | Q138: =D138*IS!#REF! ->  | R138: =E138*IS!#REF! ->  | S138: =F138*IS!#REF! ->  | T138: =G138*IS!#REF! ->  | U138: =H138*IS!#REF! ->  | V138: =I138*IS!#REF! ->  | W138: =J138*IS!#REF! ->  | X138: =K138*IS!#REF! ->  | Y138: =L138*IS!#REF! ->  | Z138: =M138*IS!#REF! ->  | AA138: =N138*IS!#REF! -> 
A139: Net sales, ext | B139: SC | P139: =C139*IS!#REF! ->  | Q139: =D139*IS!#REF! ->  | R139: =E139*IS!#REF! ->  | S139: =F139*IS!#REF! ->  | T139: =G139*IS!#REF! ->  | U139: =H139*IS!#REF! ->  | V139: =I139*IS!#REF! ->  | W139: =J139*IS!#REF! ->  | X139: =K139*IS!#REF! ->  | Y139: =L139*IS!#REF! ->  | Z139: =M139*IS!#REF! ->  | AA139: =N139*IS!#REF! -> 
A140: Net sales, ext | B140: MW | P140: =C140*IS!#REF! ->  | Q140: =D140*IS!#REF! ->  | R140: =E140*IS!#REF! ->  | S140: =F140*IS!#REF! ->  | T140: =G140*IS!#REF! ->  | U140: =H140*IS!#REF! ->  | V140: =I140*IS!#REF! ->  | W140: =J140*IS!#REF! ->  | X140: =K140*IS!#REF! ->  | Y140: =L140*IS!#REF! ->  | Z140: =M140*IS!#REF! ->  | AA140: =N140*IS!#REF! -> 
A141: Net sales, ext | B141: OTHERAFRICA | P141: =C141*IS!#REF! ->  | Q141: =D141*IS!#REF! ->  | R141: =E141*IS!#REF! ->  | S141: =F141*IS!#REF! ->  | T141: =G141*IS!#REF! ->  | U141: =H141*IS!#REF! ->  | V141: =I141*IS!#REF! ->  | W141: =J141*IS!#REF! ->  | X141: =K141*IS!#REF! ->  | Y141: =L141*IS!#REF! ->  | Z141: =M141*IS!#REF! ->  | AA141: =N141*IS!#REF! -> 
A142: Net sales, ext | B142: ASIAMIDDLEEAST | C142: =C143+C169 -> 0 | D142: 0 | E142: 0 | F142: 0 | G142: 0 | H142: 0 | I142: 0 | J142: 0 | K142: 0 | L142: 0 | M142: 0 | N142: 0 | P142: =P143+P169 -> 
A143: Net sales, ext | B143: ASIA | C143: =SUM(C144:C151) -> 0 | D143: 0 | E143: 0 | F143: 0 | G143: 0 | H143: 0 | I143: 0 | J143: 0 | K143: 0 | L143: 0 | M143: 0 | N143: 0 | P143: =SUM(P144:P151) -> 
A144: Net sales, ext | B144: CN | P144: =C144*IS!#REF! ->  | Q144: =D144*IS!#REF! ->  | R144: =E144*IS!#REF! ->  | S144: =F144*IS!#REF! ->  | T144: =G144*IS!#REF! ->  | U144: =H144*IS!#REF! ->  | V144: =I144*IS!#REF! ->  | W144: =J144*IS!#REF! ->  | X144: =K144*IS!#REF! ->  | Y144: =L144*IS!#REF! ->  | Z144: =M144*IS!#REF! ->  | AA144: =N144*IS!#REF! -> 
A145: Net sales, ext | B145: HK | P145: =C145*IS!#REF! ->  | Q145: =D145*IS!#REF! ->  | R145: =E145*IS!#REF! ->  | S145: =F145*IS!#REF! ->  | T145: =G145*IS!#REF! ->  | U145: =H145*IS!#REF! ->  | V145: =I145*IS!#REF! ->  | W145: =J145*IS!#REF! ->  | X145: =K145*IS!#REF! ->  | Y145: =L145*IS!#REF! ->  | Z145: =M145*IS!#REF! ->  | AA145: =N145*IS!#REF! -> 
A146: Net sales, ext | B146: IN | P146: =C146*IS!#REF! ->  | Q146: =D146*IS!#REF! ->  | R146: =E146*IS!#REF! ->  | S146: =F146*IS!#REF! ->  | T146: =G146*IS!#REF! ->  | U146: =H146*IS!#REF! ->  | V146: =I146*IS!#REF! ->  | W146: =J146*IS!#REF! ->  | X146: =K146*IS!#REF! ->  | Y146: =L146*IS!#REF! ->  | Z146: =M146*IS!#REF! ->  | AA146: =N146*IS!#REF! -> 
A147: Net sales, ext | B147: JP | P147: =C147*IS!#REF! ->  | Q147: =D147*IS!#REF! ->  | R147: =E147*IS!#REF! ->  | S147: =F147*IS!#REF! ->  | T147: =G147*IS!#REF! ->  | U147: =H147*IS!#REF! ->  | V147: =I147*IS!#REF! ->  | W147: =J147*IS!#REF! ->  | X147: =K147*IS!#REF! ->  | Y147: =L147*IS!#REF! ->  | Z147: =M147*IS!#REF! ->  | AA147: =N147*IS!#REF! -> 
A148: Net sales, ext | B148: KR | P148: =C148*IS!#REF! ->  | Q148: =D148*IS!#REF! ->  | R148: =E148*IS!#REF! ->  | S148: =F148*IS!#REF! ->  | T148: =G148*IS!#REF! ->  | U148: =H148*IS!#REF! ->  | V148: =I148*IS!#REF! ->  | W148: =J148*IS!#REF! ->  | X148: =K148*IS!#REF! ->  | Y148: =L148*IS!#REF! ->  | Z148: =M148*IS!#REF! ->  | AA148: =N148*IS!#REF! -> 
A149: Net sales, ext | B149: SG | P149: =C149*IS!#REF! ->  | Q149: =D149*IS!#REF! ->  | R149: =E149*IS!#REF! ->  | S149: =F149*IS!#REF! ->  | T149: =G149*IS!#REF! ->  | U149: =H149*IS!#REF! ->  | V149: =I149*IS!#REF! ->  | W149: =J149*IS!#REF! ->  | X149: =K149*IS!#REF! ->  | Y149: =L149*IS!#REF! ->  | Z149: =M149*IS!#REF! ->  | AA149: =N149*IS!#REF! -> 
A150: Net sales, ext | B150: TH | P150: =C150*IS!#REF! ->  | Q150: =D150*IS!#REF! ->  | R150: =E150*IS!#REF! ->  | S150: =F150*IS!#REF! ->  | T150: =G150*IS!#REF! ->  | U150: =H150*IS!#REF! ->  | V150: =I150*IS!#REF! ->  | W150: =J150*IS!#REF! ->  | X150: =K150*IS!#REF! ->  | Y150: =L150*IS!#REF! ->  | Z150: =M150*IS!#REF! ->  | AA150: =N150*IS!#REF! -> 
A151: Net sales, ext | B151: OTHASIA | C151: =SUM(C152:C168) -> 0 | D151: 0 | E151: 0 | F151: 0 | G151: 0 | H151: 0 | I151: 0 | J151: 0 | K151: 0 | L151: 0 | M151: 0 | N151: 0 | P151: =SUM(P152:P168) -> 
A152: Net sales, ext | B152: MM | P152: =C152*IS!#REF! ->  | Q152: =D152*IS!#REF! ->  | R152: =E152*IS!#REF! ->  | S152: =F152*IS!#REF! ->  | T152: =G152*IS!#REF! ->  | U152: =H152*IS!#REF! ->  | V152: =I152*IS!#REF! ->  | W152: =J152*IS!#REF! ->  | X152: =K152*IS!#REF! ->  | Y152: =L152*IS!#REF! ->  | Z152: =M152*IS!#REF! ->  | AA152: =N152*IS!#REF! -> 
A153: Net sales, ext | B153: ID | P153: =C153*IS!#REF! ->  | Q153: =D153*IS!#REF! ->  | R153: =E153*IS!#REF! ->  | S153: =F153*IS!#REF! ->  | T153: =G153*IS!#REF! ->  | U153: =H153*IS!#REF! ->  | V153: =I153*IS!#REF! ->  | W153: =J153*IS!#REF! ->  | X153: =K153*IS!#REF! ->  | Y153: =L153*IS!#REF! ->  | Z153: =M153*IS!#REF! ->  | AA153: =N153*IS!#REF! -> 
A154: Net sales, ext | B154: KZ | P154: =C154*IS!#REF! ->  | Q154: =D154*IS!#REF! ->  | R154: =E154*IS!#REF! ->  | S154: =F154*IS!#REF! ->  | T154: =G154*IS!#REF! ->  | U154: =H154*IS!#REF! ->  | V154: =I154*IS!#REF! ->  | W154: =J154*IS!#REF! ->  | X154: =K154*IS!#REF! ->  | Y154: =L154*IS!#REF! ->  | Z154: =M154*IS!#REF! ->  | AA154: =N154*IS!#REF! -> 
A155: Net sales, ext | B155: KG | P155: =C155*IS!#REF! ->  | Q155: =D155*IS!#REF! ->  | R155: =E155*IS!#REF! ->  | S155: =F155*IS!#REF! ->  | T155: =G155*IS!#REF! ->  | U155: =H155*IS!#REF! ->  | V155: =I155*IS!#REF! ->  | W155: =J155*IS!#REF! ->  | X155: =K155*IS!#REF! ->  | Y155: =L155*IS!#REF! ->  | Z155: =M155*IS!#REF! ->  | AA155: =N155*IS!#REF! -> 
A156: Net sales, ext | B156: MO | P156: =C156*IS!#REF! ->  | Q156: =D156*IS!#REF! ->  | R156: =E156*IS!#REF! ->  | S156: =F156*IS!#REF! ->  | T156: =G156*IS!#REF! ->  | U156: =H156*IS!#REF! ->  | V156: =I156*IS!#REF! ->  | W156: =J156*IS!#REF! ->  | X156: =K156*IS!#REF! ->  | Y156: =L156*IS!#REF! ->  | Z156: =M156*IS!#REF! ->  | AA156: =N156*IS!#REF! -> 
A157: Net sales, ext | B157: MY | P157: =C157*IS!#REF! ->  | Q157: =D157*IS!#REF! ->  | R157: =E157*IS!#REF! ->  | S157: =F157*IS!#REF! ->  | T157: =G157*IS!#REF! ->  | U157: =H157*IS!#REF! ->  | V157: =I157*IS!#REF! ->  | W157: =J157*IS!#REF! ->  | X157: =K157*IS!#REF! ->  | Y157: =L157*IS!#REF! ->  | Z157: =M157*IS!#REF! ->  | AA157: =N157*IS!#REF! -> 
A158: Net sales, ext | B158: PK | P158: =C158*IS!#REF! ->  | Q158: =D158*IS!#REF! ->  | R158: =E158*IS!#REF! ->  | S158: =F158*IS!#REF! ->  | T158: =G158*IS!#REF! ->  | U158: =H158*IS!#REF! ->  | V158: =I158*IS!#REF! ->  | W158: =J158*IS!#REF! ->  | X158: =K158*IS!#REF! ->  | Y158: =L158*IS!#REF! ->  | Z158: =M158*IS!#REF! ->  | AA158: =N158*IS!#REF! -> 
A159: Net sales, ext | B159: PH | P159: =C159*IS!#REF! ->  | Q159: =D159*IS!#REF! ->  | R159: =E159*IS!#REF! ->  | S159: =F159*IS!#REF! ->  | T159: =G159*IS!#REF! ->  | U159: =H159*IS!#REF! ->  | V159: =I159*IS!#REF! ->  | W159: =J159*IS!#REF! ->  | X159: =K159*IS!#REF! ->  | Y159: =L159*IS!#REF! ->  | Z159: =M159*IS!#REF! ->  | AA159: =N159*IS!#REF! -> 
A160: Net sales, ext | B160: LK | P160: =C160*IS!#REF! ->  | Q160: =D160*IS!#REF! ->  | R160: =E160*IS!#REF! ->  | S160: =F160*IS!#REF! ->  | T160: =G160*IS!#REF! ->  | U160: =H160*IS!#REF! ->  | V160: =I160*IS!#REF! ->  | W160: =J160*IS!#REF! ->  | X160: =K160*IS!#REF! ->  | Y160: =L160*IS!#REF! ->  | Z160: =M160*IS!#REF! ->  | AA160: =N160*IS!#REF! -> 
A161: Net sales, ext | B161: TW | P161: =C161*IS!#REF! ->  | Q161: =D161*IS!#REF! ->  | R161: =E161*IS!#REF! ->  | S161: =F161*IS!#REF! ->  | T161: =G161*IS!#REF! ->  | U161: =H161*IS!#REF! ->  | V161: =I161*IS!#REF! ->  | W161: =J161*IS!#REF! ->  | X161: =K161*IS!#REF! ->  | Y161: =L161*IS!#REF! ->  | Z161: =M161*IS!#REF! ->  | AA161: =N161*IS!#REF! -> 
A162: Net sales, ext | B162: TJ | P162: =C162*IS!#REF! ->  | Q162: =D162*IS!#REF! ->  | R162: =E162*IS!#REF! ->  | S162: =F162*IS!#REF! ->  | T162: =G162*IS!#REF! ->  | U162: =H162*IS!#REF! ->  | V162: =I162*IS!#REF! ->  | W162: =J162*IS!#REF! ->  | X162: =K162*IS!#REF! ->  | Y162: =L162*IS!#REF! ->  | Z162: =M162*IS!#REF! ->  | AA162: =N162*IS!#REF! -> 
A163: Net sales, ext | B163: TM | P163: =C163*IS!#REF! ->  | Q163: =D163*IS!#REF! ->  | R163: =E163*IS!#REF! ->  | S163: =F163*IS!#REF! ->  | T163: =G163*IS!#REF! ->  | U163: =H163*IS!#REF! ->  | V163: =I163*IS!#REF! ->  | W163: =J163*IS!#REF! ->  | X163: =K163*IS!#REF! ->  | Y163: =L163*IS!#REF! ->  | Z163: =M163*IS!#REF! ->  | AA163: =N163*IS!#REF! -> 
A164: Net sales, ext | B164: UZ | P164: =C164*IS!#REF! ->  | Q164: =D164*IS!#REF! ->  | R164: =E164*IS!#REF! ->  | S164: =F164*IS!#REF! ->  | T164: =G164*IS!#REF! ->  | U164: =H164*IS!#REF! ->  | V164: =I164*IS!#REF! ->  | W164: =J164*IS!#REF! ->  | X164: =K164*IS!#REF! ->  | Y164: =L164*IS!#REF! ->  | Z164: =M164*IS!#REF! ->  | AA164: =N164*IS!#REF! -> 
A165: Net sales, ext | B165: VN | P165: =C165*IS!#REF! ->  | Q165: =D165*IS!#REF! ->  | R165: =E165*IS!#REF! ->  | S165: =F165*IS!#REF! ->  | T165: =G165*IS!#REF! ->  | U165: =H165*IS!#REF! ->  | V165: =I165*IS!#REF! ->  | W165: =J165*IS!#REF! ->  | X165: =K165*IS!#REF! ->  | Y165: =L165*IS!#REF! ->  | Z165: =M165*IS!#REF! ->  | AA165: =N165*IS!#REF! -> 
A166: Net sales, ext | B166: BD | P166: =C166*IS!#REF! ->  | Q166: =D166*IS!#REF! ->  | R166: =E166*IS!#REF! ->  | S166: =F166*IS!#REF! ->  | T166: =G166*IS!#REF! ->  | U166: =H166*IS!#REF! ->  | V166: =I166*IS!#REF! ->  | W166: =J166*IS!#REF! ->  | X166: =K166*IS!#REF! ->  | Y166: =L166*IS!#REF! ->  | Z166: =M166*IS!#REF! ->  | AA166: =N166*IS!#REF! -> 
A167: Net sales, ext | B167: MN | P167: =C167*IS!#REF! ->  | Q167: =D167*IS!#REF! ->  | R167: =E167*IS!#REF! ->  | S167: =F167*IS!#REF! ->  | T167: =G167*IS!#REF! ->  | U167: =H167*IS!#REF! ->  | V167: =I167*IS!#REF! ->  | W167: =J167*IS!#REF! ->  | X167: =K167*IS!#REF! ->  | Y167: =L167*IS!#REF! ->  | Z167: =M167*IS!#REF! ->  | AA167: =N167*IS!#REF! -> 
A168: Net sales, ext | B168: OTHERASIA | P168: =C168*IS!#REF! ->  | Q168: =D168*IS!#REF! ->  | R168: =E168*IS!#REF! ->  | S168: =F168*IS!#REF! ->  | T168: =G168*IS!#REF! ->  | U168: =H168*IS!#REF! ->  | V168: =I168*IS!#REF! ->  | W168: =J168*IS!#REF! ->  | X168: =K168*IS!#REF! ->  | Y168: =L168*IS!#REF! ->  | Z168: =M168*IS!#REF! ->  | AA168: =N168*IS!#REF! -> 
A169: Net sales, ext | B169: MIDDLEEAST | C169: =C170+C171+C172+C173 -> 0 | D169: 0 | E169: 0 | F169: 0 | G169: 0 | H169: 0 | I169: 0 | J169: 0 | K169: 0 | L169: 0 | M169: 0 | N169: 0 | P169: =P170+P171+P172+P173 -> 
A170: Net sales, ext | B170: IL | P170: =C170*IS!#REF! ->  | Q170: =D170*IS!#REF! ->  | R170: =E170*IS!#REF! ->  | S170: =F170*IS!#REF! ->  | T170: =G170*IS!#REF! ->  | U170: =H170*IS!#REF! ->  | V170: =I170*IS!#REF! ->  | W170: =J170*IS!#REF! ->  | X170: =K170*IS!#REF! ->  | Y170: =L170*IS!#REF! ->  | Z170: =M170*IS!#REF! ->  | AA170: =N170*IS!#REF! -> 
A171: Net sales, ext | B171: SA | P171: =C171*IS!#REF! ->  | Q171: =D171*IS!#REF! ->  | R171: =E171*IS!#REF! ->  | S171: =F171*IS!#REF! ->  | T171: =G171*IS!#REF! ->  | U171: =H171*IS!#REF! ->  | V171: =I171*IS!#REF! ->  | W171: =J171*IS!#REF! ->  | X171: =K171*IS!#REF! ->  | Y171: =L171*IS!#REF! ->  | Z171: =M171*IS!#REF! ->  | AA171: =N171*IS!#REF! -> 
A172: Net sales, ext | B172: AE | P172: =C172*IS!#REF! ->  | Q172: =D172*IS!#REF! ->  | R172: =E172*IS!#REF! ->  | S172: =F172*IS!#REF! ->  | T172: =G172*IS!#REF! ->  | U172: =H172*IS!#REF! ->  | V172: =I172*IS!#REF! ->  | W172: =J172*IS!#REF! ->  | X172: =K172*IS!#REF! ->  | Y172: =L172*IS!#REF! ->  | Z172: =M172*IS!#REF! ->  | AA172: =N172*IS!#REF! -> 
A173: Net sales, ext | B173: OTHMIDDLEEAST | C173: =SUM(C174:C185) -> 0 | D173: 0 | E173: 0 | F173: 0 | G173: 0 | H173: 0 | I173: 0 | J173: 0 | K173: 0 | L173: 0 | M173: 0 | N173: 0 | P173: =SUM(P174:P185) -> 
A174: Net sales, ext | B174: BH | P174: =C174*IS!#REF! ->  | Q174: =D174*IS!#REF! ->  | R174: =E174*IS!#REF! ->  | S174: =F174*IS!#REF! ->  | T174: =G174*IS!#REF! ->  | U174: =H174*IS!#REF! ->  | V174: =I174*IS!#REF! ->  | W174: =J174*IS!#REF! ->  | X174: =K174*IS!#REF! ->  | Y174: =L174*IS!#REF! ->  | Z174: =M174*IS!#REF! ->  | AA174: =N174*IS!#REF! -> 
A175: Net sales, ext | B175: IR | P175: =C175*IS!#REF! ->  | Q175: =D175*IS!#REF! ->  | R175: =E175*IS!#REF! ->  | S175: =F175*IS!#REF! ->  | T175: =G175*IS!#REF! ->  | U175: =H175*IS!#REF! ->  | V175: =I175*IS!#REF! ->  | W175: =J175*IS!#REF! ->  | X175: =K175*IS!#REF! ->  | Y175: =L175*IS!#REF! ->  | Z175: =M175*IS!#REF! ->  | AA175: =N175*IS!#REF! -> 
A176: Net sales, ext | B176: IQ | P176: =C176*IS!#REF! ->  | Q176: =D176*IS!#REF! ->  | R176: =E176*IS!#REF! ->  | S176: =F176*IS!#REF! ->  | T176: =G176*IS!#REF! ->  | U176: =H176*IS!#REF! ->  | V176: =I176*IS!#REF! ->  | W176: =J176*IS!#REF! ->  | X176: =K176*IS!#REF! ->  | Y176: =L176*IS!#REF! ->  | Z176: =M176*IS!#REF! ->  | AA176: =N176*IS!#REF! -> 
A177: Net sales, ext | B177: JO | P177: =C177*IS!#REF! ->  | Q177: =D177*IS!#REF! ->  | R177: =E177*IS!#REF! ->  | S177: =F177*IS!#REF! ->  | T177: =G177*IS!#REF! ->  | U177: =H177*IS!#REF! ->  | V177: =I177*IS!#REF! ->  | W177: =J177*IS!#REF! ->  | X177: =K177*IS!#REF! ->  | Y177: =L177*IS!#REF! ->  | Z177: =M177*IS!#REF! ->  | AA177: =N177*IS!#REF! -> 
A178: Net sales, ext | B178: KW | P178: =C178*IS!#REF! ->  | Q178: =D178*IS!#REF! ->  | R178: =E178*IS!#REF! ->  | S178: =F178*IS!#REF! ->  | T178: =G178*IS!#REF! ->  | U178: =H178*IS!#REF! ->  | V178: =I178*IS!#REF! ->  | W178: =J178*IS!#REF! ->  | X178: =K178*IS!#REF! ->  | Y178: =L178*IS!#REF! ->  | Z178: =M178*IS!#REF! ->  | AA178: =N178*IS!#REF! -> 
A179: Net sales, ext | B179: LB | P179: =C179*IS!#REF! ->  | Q179: =D179*IS!#REF! ->  | R179: =E179*IS!#REF! ->  | S179: =F179*IS!#REF! ->  | T179: =G179*IS!#REF! ->  | U179: =H179*IS!#REF! ->  | V179: =I179*IS!#REF! ->  | W179: =J179*IS!#REF! ->  | X179: =K179*IS!#REF! ->  | Y179: =L179*IS!#REF! ->  | Z179: =M179*IS!#REF! ->  | AA179: =N179*IS!#REF! -> 
A180: Net sales, ext | B180: OM | P180: =C180*IS!#REF! ->  | Q180: =D180*IS!#REF! ->  | R180: =E180*IS!#REF! ->  | S180: =F180*IS!#REF! ->  | T180: =G180*IS!#REF! ->  | U180: =H180*IS!#REF! ->  | V180: =I180*IS!#REF! ->  | W180: =J180*IS!#REF! ->  | X180: =K180*IS!#REF! ->  | Y180: =L180*IS!#REF! ->  | Z180: =M180*IS!#REF! ->  | AA180: =N180*IS!#REF! -> 
A181: Net sales, ext | B181: PS | P181: =C181*IS!#REF! ->  | Q181: =D181*IS!#REF! ->  | R181: =E181*IS!#REF! ->  | S181: =F181*IS!#REF! ->  | T181: =G181*IS!#REF! ->  | U181: =H181*IS!#REF! ->  | V181: =I181*IS!#REF! ->  | W181: =J181*IS!#REF! ->  | X181: =K181*IS!#REF! ->  | Y181: =L181*IS!#REF! ->  | Z181: =M181*IS!#REF! ->  | AA181: =N181*IS!#REF! -> 
A182: Net sales, ext | B182: QA | P182: =C182*IS!#REF! ->  | Q182: =D182*IS!#REF! ->  | R182: =E182*IS!#REF! ->  | S182: =F182*IS!#REF! ->  | T182: =G182*IS!#REF! ->  | U182: =H182*IS!#REF! ->  | V182: =I182*IS!#REF! ->  | W182: =J182*IS!#REF! ->  | X182: =K182*IS!#REF! ->  | Y182: =L182*IS!#REF! ->  | Z182: =M182*IS!#REF! ->  | AA182: =N182*IS!#REF! -> 
A183: Net sales, ext | B183: SY | P183: =C183*IS!#REF! ->  | Q183: =D183*IS!#REF! ->  | R183: =E183*IS!#REF! ->  | S183: =F183*IS!#REF! ->  | T183: =G183*IS!#REF! ->  | U183: =H183*IS!#REF! ->  | V183: =I183*IS!#REF! ->  | W183: =J183*IS!#REF! ->  | X183: =K183*IS!#REF! ->  | Y183: =L183*IS!#REF! ->  | Z183: =M183*IS!#REF! ->  | AA183: =N183*IS!#REF! -> 
A184: Net sales, ext | B184: YE | P184: =C184*IS!#REF! ->  | Q184: =D184*IS!#REF! ->  | R184: =E184*IS!#REF! ->  | S184: =F184*IS!#REF! ->  | T184: =G184*IS!#REF! ->  | U184: =H184*IS!#REF! ->  | V184: =I184*IS!#REF! ->  | W184: =J184*IS!#REF! ->  | X184: =K184*IS!#REF! ->  | Y184: =L184*IS!#REF! ->  | Z184: =M184*IS!#REF! ->  | AA184: =N184*IS!#REF! -> 
A185: Net sales, ext | B185: OTHERMIDDLEEAST | P185: =C185*IS!#REF! ->  | Q185: =D185*IS!#REF! ->  | R185: =E185*IS!#REF! ->  | S185: =F185*IS!#REF! ->  | T185: =G185*IS!#REF! ->  | U185: =H185*IS!#REF! ->  | V185: =I185*IS!#REF! ->  | W185: =J185*IS!#REF! ->  | X185: =K185*IS!#REF! ->  | Y185: =L185*IS!#REF! ->  | Z185: =M185*IS!#REF! ->  | AA185: =N185*IS!#REF! -> 
A186: Net sales, ext | B186: PACIFIC | C186: =SUM(C187:C190) -> 0 | D186: 0 | E186: 0 | F186: 0 | G186: 0 | H186: 0 | I186: 0 | J186: 0 | K186: 0 | L186: 0 | M186: 0 | N186: 0 | P186: =SUM(P187:P190) -> 
A187: Net sales, ext | B187: AU | P187: =C187*IS!#REF! ->  | Q187: =D187*IS!#REF! ->  | R187: =E187*IS!#REF! ->  | S187: =F187*IS!#REF! ->  | T187: =G187*IS!#REF! ->  | U187: =H187*IS!#REF! ->  | V187: =I187*IS!#REF! ->  | W187: =J187*IS!#REF! ->  | X187: =K187*IS!#REF! ->  | Y187: =L187*IS!#REF! ->  | Z187: =M187*IS!#REF! ->  | AA187: =N187*IS!#REF! -> 
A188: Net sales, ext | B188: NZ | P188: =C188*IS!#REF! ->  | Q188: =D188*IS!#REF! ->  | R188: =E188*IS!#REF! ->  | S188: =F188*IS!#REF! ->  | T188: =G188*IS!#REF! ->  | U188: =H188*IS!#REF! ->  | V188: =I188*IS!#REF! ->  | W188: =J188*IS!#REF! ->  | X188: =K188*IS!#REF! ->  | Y188: =L188*IS!#REF! ->  | Z188: =M188*IS!#REF! ->  | AA188: =N188*IS!#REF! -> 
A189: Net sales, ext | B189: GU | P189: =C189*IS!#REF! ->  | Q189: =D189*IS!#REF! ->  | R189: =E189*IS!#REF! ->  | S189: =F189*IS!#REF! ->  | T189: =G189*IS!#REF! ->  | U189: =H189*IS!#REF! ->  | V189: =I189*IS!#REF! ->  | W189: =J189*IS!#REF! ->  | X189: =K189*IS!#REF! ->  | Y189: =L189*IS!#REF! ->  | Z189: =M189*IS!#REF! ->  | AA189: =N189*IS!#REF! -> 
A190: Net sales, ext | B190: OTHERPACIFIC | P190: =C190*IS!#REF! ->  | Q190: =D190*IS!#REF! ->  | R190: =E190*IS!#REF! ->  | S190: =F190*IS!#REF! ->  | T190: =G190*IS!#REF! ->  | U190: =H190*IS!#REF! ->  | V190: =I190*IS!#REF! ->  | W190: =J190*IS!#REF! ->  | X190: =K190*IS!#REF! ->  | Y190: =L190*IS!#REF! ->  | Z190: =M190*IS!#REF! ->  | AA190: =N190*IS!#REF! -> 

Sheet AvgEmp (hidden)
C1: Sep | D1: =C1 -> Sep | E1: =D1 -> Sep
C2: Female | D2: Male | E2: TOTAL
A3: Net sales, ext | B3: EUROPE | C3: =C4+C23 -> 0 | D3: =D4+D23 -> 0 | E3: =E4+E23 -> 0
A4: Net sales, ext | B4: WESTERNEUROPE | C4: =SUM(C5:C22) -> 0 | D4: =SUM(D5:D22) -> 0 | E4: =SUM(E5:E22) -> 0
A5: Net sales, ext | B5: AT | E5: =SUM(C5:D5) -> 0
A6: Net sales, ext | B6: BE | E6: 0
A7: Net sales, ext | B7: DK | E7: 0
A8: Net sales, ext | B8: FI | E8: 0
A9: Net sales, ext | B9: FR | E9: 0
A10: Net sales, ext | B10: DE | E10: 0
A11: Net sales, ext | B11: GR | E11: 0
A12: Net sales, ext | B12: IE | E12: 0
A13: Net sales, ext | B13: IT | E13: 0
A14: Net sales, ext | B14: NL | E14: 0
A15: Net sales, ext | B15: NO | E15: 0
A16: Net sales, ext | B16: PT | E16: 0
A17: Net sales, ext | B17: ES | E17: 0
A18: Net sales, ext | B18: SE | E18: 0
A19: Net sales, ext | B19: CH | E19: 0
A20: Net sales, ext | B20: GB | E20: 0
A21: Net sales, ext | B21: IS | E21: 0
A22: Net sales, ext | B22: LU | E22: 0
A23: Net sales, ext | B23: EASTERNEUROPE | C23: =SUM(C24:C48) -> 0 | D23: =SUM(D24:D48) -> 0 | E23: =SUM(E24:E48) -> 0
A24: Net sales, ext | B24: AL | E24: =SUM(C24:D24) -> 0
A25: Net sales, ext | B25: AM | E25: 0
A26: Net sales, ext | B26: AZ | E26: 0
A27: Net sales, ext | B27: BY | E27: 0
A28: Net sales, ext | B28: BA | E28: 0
A29: Net sales, ext | B29: BG | E29: 0
A30: Net sales, ext | B30: HR | E30: 0
A31: Net sales, ext | B31: GE | E31: 0
A32: Net sales, ext | B32: HU | E32: 0
A33: Net sales, ext | B33: MK | E33: 0
A34: Net sales, ext | B34: MD | E34: 0
A35: Net sales, ext | B35: ME | E35: 0
A36: Net sales, ext | B36: RS | E36: 0
A37: Net sales, ext | B37: SI | E37: 0
A38: Net sales, ext | B38: UA | E38: 0
A39: Net sales, ext | B39: EE | E39: 0
A40: Net sales, ext | B40: LV | E40: 0
A41: Net sales, ext | B41: LT | E41: 0
A42: Net sales, ext | B42: CZ | E42: 0
A43: Net sales, ext | B43: PL | E43: 0
A44: Net sales, ext | B44: RO | E44: 0
A45: Net sales, ext | B45: RU | E45: 0
A46: Net sales, ext | B46: SK | E46: 0
A47: Net sales, ext | B47: TR | E47: 0
A48: Net sales, ext | B48: OTHEREUROPE | E48: 0
A49: Net sales, ext | B49: NORTHAM | C49: =SUM(C50:C52) -> 0 | D49: =SUM(D50:D52) -> 0 | E49: =SUM(E50:E52) -> 0
A50: Net sales, ext | B50: CA | E50: =SUM(C50:D50) -> 0
A51: Net sales, ext | B51: MX | E51: =SUM(C51:D51) -> 0
A52: Net sales, ext | B52: US | E52: =SUM(C52:D52) -> 0
A53: Net sales, ext | B53: CENTRSOUTHAM | C53: =C54+C76 -> 0 | D53: =D54+D76 -> 0 | E53: =E54+E76 -> 0
A54: Net sales, ext | B54: CENTRALAM | C54: =SUM(C55:C75) -> 0 | D54: =SUM(D55:D75) -> 0 | E54: =SUM(E55:E75) -> 0
A55: Net sales, ext | B55: CU | E55: =SUM(C55:D55) -> 0
A56: Net sales, ext | B56: PR | E56: 0
A57: Net sales, ext | B57: BM | E57: 0
A58: Net sales, ext | B58: CR | E58: 0
A59: Net sales, ext | B59: GT | E59: 0
A60: Net sales, ext | B60: AW | E60: 0
A61: Net sales, ext | B61: BB | E61: 0
A62: Net sales, ext | B62: HN | E62: 0
A63: Net sales, ext | B63: PA | E63: 0
A64: Net sales, ext | B64: TT | E64: 0
A65: Net sales, ext | B65: BS | E65: 0
A66: Net sales, ext | B66: DO | E66: 0
A67: Net sales, ext | B67: KY | E67: 0
A68: Net sales, ext | B68: JM | E68: 0
A69: Net sales, ext | B69: SV | E69: 0
A70: Net sales, ext | B70: LC | E70: 0
A71: Net sales, ext | B71: NI | E71: 0
A72: Net sales, ext | B72: HT | E72: 0
A73: Net sales, ext | B73: TC | E73: 0
A74: Net sales, ext | B74: AN | E74: 0
A75: Net sales, ext | B75: OTHERCENTRALAM | E75: 0
A76: Net sales, ext | B76: SOUTHAM | C76: =SUM(C77:C80) -> 0 | D76: =SUM(D77:D80) -> 0 | E76: =SUM(E77:E80) -> 0
A77: Net sales, ext | B77: BR | E77: =SUM(C77:D77) -> 0
A78: Net sales, ext | B78: CL | E78: =SUM(C78:D78) -> 0
A79: Net sales, ext | B79: CO | E79: =SUM(C79:D79) -> 0
A80: Net sales, ext | B80: OTHSOUTHAMERICA | C80: =SUM(C81:C88) -> 0 | D80: =SUM(D81:D88) -> 0 | E80: =SUM(E81:E88) -> 0
A81: Net sales, ext | B81: AR | E81: =SUM(C81:D81) -> 0
A82: Net sales, ext | B82: EC | E82: 0
A83: Net sales, ext | B83: PE | E83: 0
A84: Net sales, ext | B84: VE | E84: 0
A85: Net sales, ext | B85: UY | E85: 0
A86: Net sales, ext | B86: SR | E86: 0
A87: Net sales, ext | B87: BO | E87: 0
A88: Net sales, ext | B88: OTHERSOUTHAM | E88: 0
A89: Net sales, ext | B89: AFRICA | C89: =SUM(C90:C92) -> 0 | D89: =SUM(D90:D92) -> 0 | E89: =SUM(E90:E92) -> 0
A90: Net sales, ext | B90: KE | E90: =SUM(C90:D90) -> 0
A91: Net sales, ext | B91: ZA | E91: =SUM(C91:D91) -> 0
A92: Net sales, ext | B92: OTHAFRICA | C92: =SUM(C93:C141) -> 0 | D92: =SUM(D93:D141) -> 0 | E92: =SUM(E93:E141) -> 0
A93: Net sales, ext | B93: DZ | E93: =SUM(C93:D93) -> 0
A94: Net sales, ext | B94: EG | E94: 0
A95: Net sales, ext | B95: GH | E95: 0
A96: Net sales, ext | B96: LY | E96: 0
A97: Net sales, ext | B97: MU | E97: 0
A98: Net sales, ext | B98: MA | E98: 0
A99: Net sales, ext | B99: NG | E99: 0
A100: Net sales, ext | B100: SD | E100: 0
A101: Net sales, ext | B101: TZ | E101: 0
A102: Net sales, ext | B102: TN | E102: 0
A103: Net sales, ext | B103: ZW | E103: 0
A104: Net sales, ext | B104: CM | E104: 0
A105: Net sales, ext | B105: AD | E105: 0
A106: Net sales, ext | B106: ZM | E106: 0
A107: Net sales, ext | B107: NA | E107: 0
A108: Net sales, ext | B108: BW | E108: 0
A109: Net sales, ext | B109: MZ | E109: 0
A110: Net sales, ext | B110: MG | E110: 0
A111: Net sales, ext | B111: SN | E111: 0
A112: Net sales, ext | B112: GA | E112: 0
A113: Net sales, ext | B113: BJ | E113: 0
A114: Net sales, ext | B114: BF | E114: 0
A115: Net sales, ext | B115: CI | E115: 0
A116: Net sales, ext | B116: GN | E116: 0
A117: Net sales, ext | B117: GQ | E117: 0
A118: Net sales, ext | B118: GW | E118: 0
A119: Net sales, ext | B119: SL | E119: 0
A120: Net sales, ext | B120: ML | E120: 0
A121: Net sales, ext | B121: MR | E121: 0
A122: Net sales, ext | B122: CF | E122: 0
A123: Net sales, ext | B123: TD | E123: 0
A124: Net sales, ext | B124: TG | E124: 0
A125: Net sales, ext | B125: NE | E125: =SUM(C125:D125) -> 0
A126: Net sales, ext | B126: GM | E126: 0
A127: Net sales, ext | B127: LR | E127: 0
A128: Net sales, ext | B128: UG | E128: 0
A129: Net sales, ext | B129: ET | E129: 0
A130: Net sales, ext | B130: RW | E130: 0
A131: Net sales, ext | B131: BI | E131: 0
A132: Net sales, ext | B132: DJ | E132: 0
A133: Net sales, ext | B133: ER | E133: 0
A134: Net sales, ext | B134: SO | E134: 0
A135: Net sales, ext | B135: CD | E135: 0
A136: Net sales, ext | B136: SZ | E136: 0
A137: Net sales, ext | B137: LS | E137: 0
A138: Net sales, ext | B138: CG | E138: 0
A139: Net sales, ext | B139: SC | E139: 0
A140: Net sales, ext | B140: MW | E140: 0
A141: Net sales, ext | B141: OTHERAFRICA | E141: 0
A142: Net sales, ext | B142: ASIAMIDDLEEAST | C142: =C143+C169 -> 0 | D142: =D143+D169 -> 0 | E142: =E143+E169 -> 0
A143: Net sales, ext | B143: ASIA | C143: =SUM(C144:C151) -> 0 | D143: =SUM(D144:D151) -> 0 | E143: =SUM(E144:E151) -> 0
A144: Net sales, ext | B144: CN | E144: =SUM(C144:D144) -> 0
A145: Net sales, ext | B145: HK | E145: 0
A146: Net sales, ext | B146: IN | E146: 0
A147: Net sales, ext | B147: JP | E147: 0
A148: Net sales, ext | B148: KR | E148: 0
A149: Net sales, ext | B149: SG | E149: 0
A150: Net sales, ext | B150: TH | E150: 0
A151: Net sales, ext | B151: OTHASIA | C151: =SUM(C152:C168) -> 0 | D151: =SUM(D152:D168) -> 0 | E151: =SUM(E152:E168) -> 0
A152: Net sales, ext | B152: MM | E152: =SUM(C152:D152) -> 0
A153: Net sales, ext | B153: ID | E153: 0
A154: Net sales, ext | B154: KZ | E154: 0
A155: Net sales, ext | B155: KG | E155: 0
A156: Net sales, ext | B156: MO | E156: 0
A157: Net sales, ext | B157: MY | E157: 0
A158: Net sales, ext | B158: PK | E158: 0
A159: Net sales, ext | B159: PH | E159: 0
A160: Net sales, ext | B160: LK | E160: 0
A161: Net sales, ext | B161: TW | E161: 0
A162: Net sales, ext | B162: TJ | E162: 0
A163: Net sales, ext | B163: TM | E163: 0
A164: Net sales, ext | B164: UZ | E164: 0
A165: Net sales, ext | B165: VN | E165: 0
A166: Net sales, ext | B166: BD | E166: 0
A167: Net sales, ext | B167: MN | E167: 0
A168: Net sales, ext | B168: OTHERASIA | E168: 0
A169: Net sales, ext | B169: MIDDLEEAST | C169: =C170+C171+C172+C173 -> 0 | D169: =D170+D171+D172+D173 -> 0 | E169: =E170+E171+E172+E173 -> 0
A170: Net sales, ext | B170: IL | E170: =SUM(C170:D170) -> 0
A171: Net sales, ext | B171: SA | E171: =SUM(C171:D171) -> 0
A172: Net sales, ext | B172: AE | E172: =SUM(C172:D172) -> 0
A173: Net sales, ext | B173: OTHMIDDLEEAST | C173: =SUM(C174:C185) -> 0 | D173: =SUM(D174:D185) -> 0 | E173: =SUM(E174:E185) -> 0
A174: Net sales, ext | B174: BH | E174: =SUM(C174:D174) -> 0
A175: Net sales, ext | B175: IR | E175: 0
A176: Net sales, ext | B176: IQ | E176: 0
A177: Net sales, ext | B177: JO | E177: 0
A178: Net sales, ext | B178: KW | E178: 0
A179: Net sales, ext | B179: LB | E179: 0
A180: Net sales, ext | B180: OM | E180: 0
A181: Net sales, ext | B181: PS | E181: 0
A182: Net sales, ext | B182: QA | E182: 0
A183: Net sales, ext | B183: SY | E183: 0
A184: Net sales, ext | B184: YE | E184: 0
A185: Net sales, ext | B185: OTHERMIDDLEEAST | E185: 0
A186: Net sales, ext | B186: PACIFIC | C186: =SUM(C187:C190) -> 0 | D186: =SUM(D187:D190) -> 0 | E186: =SUM(E187:E190) -> 0
A187: Net sales, ext | B187: AU | E187: =SUM(C187:D187) -> 0
A188: Net sales, ext | B188: NZ | E188: =SUM(C188:D188) -> 0
A189: Net sales, ext | B189: GU | E189: =SUM(C189:D189) -> 0
A190: Net sales, ext | B190: OTHERPACIFIC | E190: =SUM(C190:D190) -> 0

Sheet CurrentTax (hidden)
B1: Gross amount | C1: Reconciliation of effective tax | E1: Gross amount | F1: Reconciliation of effective tax
A2: CTAXRate - Nominal tax rate % | E2: =B2*IS!#REF! -> 
A4: CTAX1110 - EBT | B4: =IS!B71 -> 3674 | C4: =B4*-$B$2% -> 0 | E4: =IS!#REF! ->  | F4: =E4*-$E$2% -> 
A5: CTAX1120 - Transfer of EBT (from operating to legal unit) | C5: =B5*-$B$2% -> 0 | E5: =B5*IS!#REF! ->  | F5: =E5*-$E$2% -> 
A6: CTAX1130 - Prior year adjustments included in EBT | C6: =B6*-$B$2% -> 0 | E6: =B6*IS!#REF! ->  | F6: =E6*-$E$2% -> 
A7: CTAXEBT - Accounting profit before tax | B7: =SUM(B4:B6) -> 3674 | C7: =B7*-$B$2% -> 0 | E7: =SUM(E4:E6) ->  | F7: =E7*-$E$2% -> 
A9: Tax adjustments
A10: CTAX2100 - Impairment of Shares in subsidiaries | C10: =B10*-$B$2% -> 0 | E10: =B10*IS!#REF! ->  | F10: =E10*-$E$2% -> 
A11: CTAX2110 - Impairment of Goodwill, capitalized | C11: 0 | E11: =B11*IS!#REF! -> 
A12: CTAX2120 - Impairment of Goodwill, non capitalized | C12: 0 | E12: =B12*IS!#REF! -> 
A13: CTAX2155 - Restructuring items, capitalized | C13: 0 | E13: =B13*IS!#REF! -> 
A14: CTAX2150 - Restructuring items, non capitalized | C14: 0 | E14: =B14*IS!#REF! -> 
A15: CTAX2130 - Marketing and Entertainment | C15: 0 | E15: =B15*IS!#REF! -> 
A16: CTAX2140 - Bad debts: Provision and write down | C16: 0 | E16: =B16*IS!#REF! -> 
A17: CTAX2225 - Other non-deductible expenses, capitalized (d) | C17: 0 | E17: =B17*IS!#REF! -> 
A18: CTAX2165 - Other non-deductible expenses, non capitalized (d) | C18: 0 | E18: =B18*IS!#REF! -> 
A19: CTAX2170 - Received dividend | C19: 0 | E19: =B19*IS!#REF! -> 
A20: CTAX2180 - Result from sale of shares | C20: 0 | E20: =B20*IS!#REF! -> 
A21: CTAX2190 - Earnings from shares in associates | C21: 0 | E21: =B21*IS!#REF! -> 
A22: CTAX2230 - Other non taxable income, capitalized (d) | C22: 0 | E22: =B22*IS!#REF! -> 
A23: CTAX2205 - Other non taxable income, non capitalized (d) | C23: 0 | E23: =B23*IS!#REF! -> 
A24: CTAX2215 - Taxable/Deductible adjustments, capitalized (d) | C24: 0 | E24: =B24*IS!#REF! -> 
A25: CTAX2240 - Taxable/Deductible adjustments, non-capitalized (d) | C25: 0 | E25: =B25*IS!#REF! -> 
A27: Effect in tax from losses
A28: CTAX3110 - Utilization of tax losses, capitalized | C28: =B28*-$B$2% -> 0 | E28: =B28*IS!#REF! ->  | F28: =E28*-$E$2% -> 
A29: CTAX3120 - Utilization of tax losses, non capitalized | C29: 0 | E29: =B29*IS!#REF! -> 
A30: CTAX3130 - Increase in tax losses, capitalized | C30: 0 | E30: =B30*IS!#REF! -> 
A31: CTAX3140 - Increase in tax losses, non capitalized | C31: 0 | E31: =B31*IS!#REF! -> 
A32: CTAX3150 - Utilization of tax credits, capitalized | C32: 0 | E32: =B32*IS!#REF! -> 
A33: CTAX3160 - Utilization of tax credits, non capitalized | C33: 0 | E33: =B33*IS!#REF! -> 
A34: CTAX3170 - Increase in tax credits, capitalized | C34: 0 | E34: =B34*IS!#REF! -> 
A35: CTAX3180 - Increase in tax credits, non capitalized | C35: 0 | E35: =B35*IS!#REF! -> 
A36: CTAXTAXABLE - TOTAL TAXABLE INCOME | B36: =SUM(B7:B35) -> 3674 | C36: 0 | E36: =SUM(E7:E35) -> 
A38: CTAX4100 - Calculated tax expense for the year | B38: =B36*-$B$2% -> 0 | E38: =E36*-$E$2% -> 
A40: CTAX4110 - Adjustments for multiple tax rates | C40: =B40*-$B$2% -> 0 | E40: =B40*IS!#REF! ->  | F40: =E40*-$E$2% -> 
A41: CTAX4200 - Tax expense for the year | B41: =IS!B72 -> -230 | E41: =IS!#REF! -> 
A43: Validation
A44: VCTAX - Validation Current tax spec vs IS | B44: =B41-B38 -> -230 | E44: =E41-E38 -> 
A45: VCTAX1120 - Validation Transfer of EBT (should equal zero)
A47: Other
A48: CTAX5110 - Tax attributable to prior years | F48: =C48*IS!#REF! -> 
A49: CTAX5115 - Deferred tax attributable to prior years | F49: =C49*IS!#REF! -> 
A50: CTAX5130 - Other taxes (d) | F50: =C50*IS!#REF! -> 
A51: CTAX5120 - Effect of changed tax rates and tax rules on deferred taxes | F51: =C51*IS!#REF! -> 
A52: CTAX5150 - Withholding taxes | F52: =C52*IS!#REF! -> 
A53: CTAX5140 - Other adjustments of effective tax (d) | F53: =C53*IS!#REF! -> 
A55: CTAXTAXCOST - Total tax cost explained | C55: =SUM(C36:C54) -> 0 | F55: =SUM(F36:F54) -> 
A57: Validation
A58: VTOTTAX - Validation Total tax spec vs IS | C58: =C55-B38 -> 0 | F58: =F55-E38 -> 
A60: CTAXERateCur - Effective current tax rate % | C60: =(C55/B7)*100 -> 0 | F60: =(F55/E7)*100 -> 
A61: CTAXERate - Effective total tax rate % | C61: =(C55/B7)*100 -> 0 | F61: =(F55/E7)*100 -> 

Sheet Sheet4

Sheet Sheet2

Sheet Sheet3
